{"text_format":"1","workbook":"xlsx","n_sheets":10,"sheets":["Accueil","Notice d'utilisation","Isolement Vestimentaire","Métabolisme","Liste déroulante","Contrainte chaude","Confort global","Confort local","Contrainte froide","Indice éolien"],"not_rendered":{"charts":1,"images":7,"macros":1,"external_links":0,"defined_names":2,"comments":4,"pivot_tables":0},"unopened":[],"bounds":{"document_bytes":16777216,"sheet_cells":100000,"rows_first":2000,"rows_last":500,"rows_between":2000,"halvings":0,"cell_chars":16384,"cell_head_chars":4096},"cells_cut":0,"cells_raw":0,"read":"whole","date_system":"1900"}

{"sheet":"Accueil","index":0,"n_rows":24,"n_cols":4,"rows_kept":24,"cut":false,"hidden":false,"merged":[[1,3,1,10],[3,3,3,10],[20,1,20,11],[21,1,21,11]]}
[]
[null,null,null,"Indicateur d'Ambiance Thermique"]
[]
[null,null,null,"Outil d’évaluation des ambiances thermiques"]
[]
[]
[null,"Présentation de l'outil "]
[null,"Cet outil a pour but d'estimer, selon différentes ambiances thermiques, quels seraient la contrainte ou l'inconfort occasionnés pour un salarié."]
[]
[]
[]
[]
[]
[null,"Merci de cliquer sur l'indice choisi"]
[]
[null,"Cet outil permet d'évaluer :"]
[null," - La contrainte lors d'exposition au froid à l'aide de l'isolement vestimentaire requis IREQ selon la norme EN ISO 11079:2007 et de l'indice éolien"]
[null," - Le confort thermique global à l'aide de l'indice PMV-PPD et l'inconfort thermique local selon la norme NF EN ISO 7730:2005"]
[null," - La containte due à la chaleur à l'aide de l'astreinte thermique prévisible ATP (ou PHS en anglais) selon la norme NF EN ISO 7933:2023"]
[]
[null,"La bonne utilisation de cet outil est donc conditionnée à la connaissance de ces normes et leurs limites d'emploi. Il est conseillé de lire la notice d'utilisation, qui, outre l'explication du fonctionnement de l'outil, précise les plages d'utilisation de chaque indice. "]
[null,"Quelques valeurs repères, notamment en ce qui concerne les grandeurs à estimer, sont fournies à l'utilisateur dans les onglets \"Isolement vestimentaire\" et \"Métabolisme\"."]
[]
[null,"version 1.0 (Novembre 2024)"]

{"sheet":"Notice d'utilisation","index":1,"n_rows":80,"n_cols":9,"rows_kept":80,"cut":false,"hidden":false,"merged":[[33,1,33,5],[1,3,1,10],[3,3,3,10],[8,1,8,12],[12,2,12,11],[14,2,14,11],[16,1,16,12],[19,3,19,10],[10,2,10,12],[7,1,7,11],[46,1,46,5],[47,1,47,5],[40,1,40,8],[41,1,41,5],[42,1,42,5],[43,1,43,5],[55,1,55,5],[59,1,59,8],[61,1,61,5],[63,1,63,8],[64,1,64,5],[74,1,74,5],[75,1,75,5],[76,1,76,5],[66,1,66,5],[56,1,56,5],[57,1,57,5],[60,1,60,5],[65,1,65,5],[67,1,67,5],[68,1,68,5],[70,1,70,12],[72,1,72,8],[73,1,73,5],[79,1,79,12],[24,1,24,11],[44,1,44,5],[45,1,45,5],[49,1,49,12],[53,1,53,8],[54,1,54,5],[30,1,30,5],[31,1,31,5],[32,1,32,5],[35,1,35,12],[36,1,36,12],[26,1,26,8],[27,1,27,5],[28,1,28,5],[29,1,29,5]]}
[]
[null,null,null,"Indicateur d'Ambiance Thermique"]
[]
[null,null,null,"Outil d’évaluation des ambiances thermiques"]
[]
[]
[null,"Description de l'outil et points de vigilance "]
[null,"Cet outil est basé sur un tableur Excel combiné à différentes macros permettant de calculer les différents indicateurs. Plusieurs onglets permettent d'évaluer les indicateurs d'ambiance thermique selon la situation rencontrée (contrainte chaude, contrainte froide, inconfort thermique). Pour chaque module, différentes données devront être renseignées (température sèche d'air, hygrométrie, etc.).  Il est nécessaire d'employer les unités définies. Il est rappelé qu'il s'agit d'un outil réservé à des spécialistes ayant des notions relatives à la thermique ainsi qu'à la métrologie associée."]
[null,"L'outil est protégé pour éviter toute modification."]
[]
[null,null,"Les différentes cases de saisie blanches ne sont pas protégées et doivent être correctement renseignées par l'utilisateur pour que l'outil \nprocède aux calculs. "]
[]
[null,null,"Les cases de résultats (vertes ou mises en forme conditionnelle) ne sont pas protégées afin de laisser les macros écrire \nles valeurs issues des calculs. "]
[]
[null,null,"Les différentes cases grisées sont protégées, elle résultent des différents résultats de calcul. Elles offrent à l'utilisateur \ndes informations complémentaires."]
[]
[null,"Les unités à utiliser sont indiquées pour chaque paramètre. Les données à utiliser devront au préalable être converties dans les unités \nutilisées par l'outil afin de garantir l'exactitude des résultats. "]
[null,"Des commentaires sont présents pour certains éléments le nécessitant."]
[]
[null,null,null,"Des boutons permettent des actions à l'utilisateur, comme lancer les calculs après avoir entré les valeurs à renseigner ou effacer les graphiques avant un nouveau calcul."]
[]
[]
[null,"Préalable à l'utilisation de l'outil "]
[null,"Ci-après les plages de validité et spécificités de chaque indice présenté dans l'outil :"]
[null,"Plages de validité du modèle d'astreinte thermique prévisible ATP (ou PHS) de la norme NF EN ISO 7933:2023"]
[]
[null,"Plages de validité du modèle d'astreinte thermique ATP"]
[null,"Paramètres",null,null,null,null,"Unité","Minimum","Maximum"]
[null,"Température de l'air (Ta)",null,null,null,null,"°C",15,50]
[null,"Pression partielle de  vapeur d'eau (Pa)",null,null,null,null,"kPa","0,5","4,5"]
[null,"Différence entre la température de rayonnement et d'air  (Tr-Ta)",null,null,null,null,"°C",0,60]
[null,"Vitesse d'air (va)",null,null,null,null,"m.s-1",0,3]
[null,"Métabolisme (M)",null,null,null,null,"W.m-2",56,250]
[null,"Isolement vestimentaire (Icl)",null,null,null,null,"clo","0,1","1,0"]
[]
[null,"Dans sa forme actuelle, cette méthode d’évaluation ne peut pas être utilisée dans le cas du port de vêtements spéciaux de protection\n(vêtement réfléchissant, réfrigéré et ventilé, imperméable, avec équipement de protection individuelle)."]
[null,"Elle n'est pas prévue pour être utilisée dans le cas de situations d'expositions courtes et intenses ni dans le cas de phases variables \nde courte durée."]
[]
[null,"Plages de validité du modèle de confort thermique PMV-PPD de la norme NF EN ISO 7730:2005"]
[]
[null,"Plages de validité du modèle de confort thermique PMV"]
[null,"Paramètres",null,null,null,null,"Unité","Minimum","Maximum"]
[null,"Température de l'air (Ta)",null,null,null,null,"°C",10,30]
[null,"Pression partielle de vapeur d'eau (Pa)",null,null,null,null,"kPa",0,"2,7"]
[null,"Température de rayonnement (Tr)",null,null,null,null,"°C",10,40]
[null,"Vitesse d'air (va)",null,null,null,null,"m.s-1",0,1]
[null,"Métabolisme (M)",null,null,null,null,"W.m-2",46,232]
[null,"Isolement vestimentaire (Icl)",null,null,null,null,"clo",0,2]
[]
[null,"Cette méthode d'évaluation est applicable aux hommes et aux femmes en bonne santé, exposés à des ambiances intérieures où le confort thermique \nest recherché, mais où des écarts modérés de ce confort thermique peuvent se produire. Cette méthode peut servir  à concevoir de nouvelles ambiances \nou à évaluer les ambiances existantes."]
[]
[null,"Plages de validité des modèles d'inconfort thermique local de la norme NF EN ISO 7730:2005"]
[]
[null,"Inconfort du aux courants d'air (Draught rate)"]
[null,"Paramètres",null,null,null,null,"Unité","Minimum","Maximum"]
[null,"Température locale de l'air (Ta,l)",null,null,null,null,"°C",20,26]
[null,"Vitesse locale de l'air (va,l)",null,null,null,null,"m.s-1"," ---","0,5"]
[null,"Intensité locale de turbulence ",null,null,null,null,"%",10,60]
[]
[null,"Inconfort du à la différence verticale de température"]
[null,"Paramètres",null,null,null,null,"Unité","Minimum","Maximum"]
[null,"Différence verticale de la température de l'air entre la tête et les pieds (Dta,v)",null,null,null,null,"°C"," ---",8]
[]
[null,"Inconfort du à l'asymétrie de température de rayonnement"]
[null,"Paramètres",null,null,null,null,"Unité","Minimum","Maximum"]
[null,"Asymétrie des températures dans le cas d'un plafond chaud (Dtpr)",null,null,null,null,"°C"," ---",23]
[null,"Asymétrie des températures dans le cas d'un mur froid (Dtpr)",null,null,null,null,"°C"," ---",15]
[null,"Asymétrie des températures dans le cas d'un plafond froid (Dtpr)",null,null,null,null,"°C"," ---",15]
[null,"Asymétrie des températures dans le cas d'un mur chaud (Dtpr)",null,null,null,null,"°C"," ---",35]
[]
[null,"Plages de validité du modèle de contrainte thermique au froid et de détermination de l'isolement requis IREQ de la norme EN ISO 11079:2007"]
[]
[null,"Plages de validité du modèle de contrainte thermique froide IREQ"]
[null,"Paramètres",null,null,null,null,"Unité","Minimum","Maximum"]
[null,"Température de l'air (Ta)",null,null,null,null,"°C"," ---",10]
[null,"Vitesse d'air (va)",null,null,null,null,"m.s-1","0,4",18]
[null,"Isolement vestimentaire (Icl)",null,null,null,null,"clo","0,5"," ---"]
[]
[null,"Note : La teneur en eau de l'air est très faible à basse température, en dessous de -5°C, retenir un taux d'hygrométrie relative de 50 %."]
[null,"Cette norme internationale expose des méthodes et des stratégies ayant pour but d'évaluer la contrainte thermique associée à l'exposition \naux environnements froids. Ces méthodes s'appliquent aux expositions et aux types de travaux continus, intermittents et occasionnels, \naussi bien en intérieur qu'à l'extérieur. Elles ne sont pas applicables aux effets spécifiques liés à certains phénomènes météorologiques \n(des précipitations, par exemple), qui sont évalués par d'autres méthodes."]

{"sheet":"Isolement Vestimentaire","index":2,"n_rows":26,"n_cols":12,"rows_kept":26,"cut":false,"hidden":false,"merged":[[13,7,13,9],[14,7,14,9],[15,7,15,9],[16,7,16,9],[17,7,17,9],[21,7,21,9],[18,7,18,9],[24,1,24,3],[25,1,25,3],[19,7,19,9],[20,7,20,9],[22,7,22,9],[23,7,23,9],[24,7,24,9],[25,7,25,9],[19,1,19,3],[21,1,21,3],[22,1,22,3],[23,1,23,3],[13,1,13,3],[20,1,20,3],[14,1,14,3],[15,1,15,3],[16,1,16,3],[17,1,17,3],[18,1,18,3],[1,3,1,10],[3,3,3,10],[7,1,7,11],[10,1,10,11],[12,1,12,3],[12,7,12,9],[8,1,8,11]]}
[]
[null,null,null,"Indicateur d'Ambiance Thermique"]
[]
[null,null,null,"Outil d’évaluation des ambiances thermiques"]
[]
[]
[null,"Isolement vestimentaire : Icl"]
[null,"Pour mener la démarche d'évaluation, il est nécessaire d'avoir accès à des grandeurs mesurées et d'autres estimées : l'isolement vestimentaire en est une. Des valeurs repères relatives à cet isolement vestimentaire sont fournies ci-après."]
[null,"Le tableau suivant regroupe l'isolement vestimentaire de quelques tenues de travail ou d'usage courant ; pour plus de détails, se reporter à la norme NF EN 9920:2007"]
[]
[null,"Isolement thermique de différentes combinaisons vestimentaires types - Extrait de la norme NF EN 9920:2007"]
[]
[null,"Vêtement de travail",null,null,"Icl \nen clo","Icl \nen m².K.W-1",null,"Vêtement d'usage courant",null,null,"Icl \nen clo","Icl \nen m².K.W-1"]
[null,"Caleçon, combinaison, chaussettes, chaussures",null,null,"0,7","0,11",null,"Slip, tee-shirt, short, chaussettes fines, sandales",null,null,"0,3","0,05"]
[null,"Caleçon, chemise, combinaison, chaussettes, chaussures",null,null,"0,8","0,125",null,"Caleçon, chemise à manches courtes, pantalon léger, chaussettes fines, chaussures",null,null,"0,5","0,08"]
[null,"Caleçon, chemise, pantalon, blouse, chaussettes, chaussures",null,null,"0,9","0,14",null,"Caleçon, chemise, pantalon léger, chaussettes, chaussures",null,null,"0,6","0,095"]
[null,"Sous-vêtement à  manche et jambe courtes, chemise, pantalon,veste, chaussettes, chaussures",null,null,1,"0,155",null,"Slip, jupon, bas, robe, chaussures",null,null,"0,7","0,105"]
[null,"Sous-vêtement à  manche et jambe courtes, chemise, pantalon, combinaison, chaussettes, chaussures",null,null,"1,1","0,17",null,"Sous-vêtement, survêtement de sport, chaussettes montantes, chaussures de sport",null,null,"0,75","0,115"]
[null,"Sous-vêtements à manches et jambes\ncourtes, veste isolante, chaussettes,\nchaussures",null,null,"1,2","0,185",null,"Slip, jupon, chemise, jupe, chaussettes montantes épaisses, chaussures",null,null,"0,8","0,12"]
[null,"Sous-vêtement à  manche et jambe courtes, chemise, pantalon, veste, veste isolante, chaussettes, chaussures",null,null,"1,25","0,19",null,"Caleçon, maillot de corps à manches courtes, chemise, pantalon, tricot, chaussettes, chaussures",null,null,"0,95","0,145"]
[null,"Sous-vêtement à manches et jambes courtes, combinaison, veste isolante et pantalon, chaussettes, chaussures",null,null,"1,4","0,22",null,"slip, chemise, pantalon, veste, chaussettes, chaussures",null,null,1,"0,155"]
[null,"Sous-vêtement à manches et jambes courtes, chemise, pantalon, veste, veste et pantalon isolants, chaussettes, chaussures",null,null,"1,55","0,225",null,"Slip, bas, chemise, jupe, gilet, veste, chaussettes, chaussures",null,null,1,"0,155"]
[null,"Sous-vêtement à  manche et jambe courtes, chemise, pantalon, veste, veste et salopette ouatinées, chaussettes, chaussures",null,null,"1,85","0,285",null,"Sous-vêtements, maillot de corps à manches courtes, chemise, pantalon, veste, chaussettes, chaussures",null,null,"1,1","0,17"]
[null,"Sous-vêtement à  manche et jambe courtes, chemise, pantalon, veste, veste et salopette ouatinées, chaussettes, chaussures, casquette, gants",null,null,2,"0,31",null,"Sous-vêtements, maillot de corps à manches courtes, chemise, pantalon, gilet, veste, chaussettes, chaussures",null,null,"1,15","0,18"]
[null,"Sous-vêtement à manches et jambes longues, veste et pantalon isolants, sur-veste et sur-pantalon isolants, chaussettes, chaussures",null,null,"2,2","0,34",null,"Sous-vêtements à manches et jambes longues, chemise, pantalon, tricot, veste, chaussettes, chaussures",null,null,"1,3","0,2"]
[null,"Sous-vêtement à manches et jambes longues, veste et pantalon isolants, parka et salopette ouatinées, chaussettes, chaussures, casquette, gants",null,null,"2,55","0,395",null,"Sous-vêtements à manches et  jambes courtes, chemise, pantalon, gilet, veste, manteau, chaussettes, chaussures",null,null,"1,5","0,23"]

{"sheet":"Métabolisme","index":3,"n_rows":129,"n_cols":21,"rows_kept":129,"cut":false,"hidden":false,"merged":[[124,1,124,9],[126,1,126,9],[128,1,128,9],[16,1,16,9],[115,1,115,9],[121,1,121,3],[122,1,122,3],[109,1,109,9],[108,1,108,9],[107,1,107,9],[106,1,106,9],[105,1,105,9],[104,1,104,9],[103,1,103,9],[102,1,102,9],[112,1,112,9],[113,1,113,9],[92,1,92,9],[99,1,99,9],[98,1,98,9],[97,1,97,9],[96,1,96,11],[100,1,100,11],[86,8,86,9],[13,9,13,11],[66,1,66,9],[68,1,68,9],[69,1,69,9],[110,1,110,11],[111,1,111,9],[67,1,67,9],[90,1,90,9],[91,1,91,9],[71,2,71,9],[72,2,72,9],[74,2,74,9],[75,2,75,9],[73,2,73,9],[94,1,94,11],[95,1,95,11],[76,2,76,9],[101,1,101,9],[78,1,78,9],[70,2,70,9],[86,6,86,7],[87,6,87,7],[88,6,88,7],[85,8,85,9],[87,8,87,9],[88,8,88,9],[86,2,86,3],[87,2,87,3],[88,2,88,3],[84,4,84,5],[85,4,85,5],[86,4,86,5],[87,4,87,5],[88,4,88,5],[80,1,80,11],[81,1,81,11],[82,1,82,11],[84,2,84,3],[85,2,85,3],[84,6,84,7],[84,8,84,9],[85,6,85,7],[1,3,1,10],[3,3,3,10],[7,1,8,11],[31,1,31,9],[65,1,65,11],[17,1,17,9],[33,1,33,11],[29,1,29,11],[47,1,47,11],[48,1,48,11],[49,1,49,9],[37,1,37,9],[35,1,35,9],[36,1,36,9],[18,1,18,9],[64,1,64,11],[56,1,56,9],[57,1,57,9],[58,1,58,9],[59,1,59,9],[19,1,19,9],[50,1,50,9],[53,1,53,9],[62,1,62,9],[30,1,30,11],[39,1,39,11],[41,1,41,9],[42,1,42,9],[43,1,43,9],[45,1,45,9],[44,1,44,9],[51,1,51,9],[52,1,52,9],[60,1,60,9],[55,1,55,9],[40,1,40,11]]}
[null,null,null,null,null,null,null,null,null,null,null,null,null,null,null,null,null,null,null,null,3000]
[null,null,null,"Indicateur d'Ambiance Thermique"]
[]
[null,null,null,"Outil d’évaluation des ambiances thermiques"]
[]
[]
[null,"Estimation du métabolisme énergétique"]
[null,"L'estimation du métabolisme pour une période de travail donnée repose sur l'observation des différentes tâches de travail et les durées associées pendant l'acticité globale que l'on cherche à caractériser. C'est un paramètre à estimer avant d'entamer la démarche d'évaluation.\nLa norme  NF EN ISO 8996:2021 ainsi que la bibliographie scientifique prévoit  un ensemble de situations pour lesquelles il est possible d'estimer le métabolisme."]
[]
[]
[null,"Données  générales à  renseigner"]
[null,null,null,null,null,null,null,null,null,null,null,null,null,null,null,null,null,9,37.070655822753906,32.892704010009766]
[null,"A renseigner",null,"Résultats",null,"Valeurs calculées",null,null,null,null,null,null,null,null,null,null,null,10,37.103172302246094,39.187255859375]
[null,null,null,null,null,null,null,null,null,"Bouton permettant d'effacer les résultats d'un calcul précédent"]
[]
[null,"Données relatives au salarié",null,null,null,null,null,null,null,null,null,null,null,null,null,null,null,16,37.264789581298828,85.376861572265625]
[null,"Genre",null,null,null,null,null,null,null,null," ---",null,null,null,null,null,null,17,37.285858154296875,94.287284851074219]
[null,"Poids (prendre 75 kg par défaut si valeur non disponible)",null,null,null,null,null,null,null,null,"kg",null,null,null,null,null,null,18,37.305370330810547,103.49329376220703]
[null,"Taille (prendre 1,80 m par défaut si valeur non disponible)",null,null,null,null,null,null,null,null,"m"]
[null,"Surface corporelle",null,null,null,null,null,null,null,null,"m²",{"$f":"IF(AND(L18=\"\",L19=\"\"),\"\",0.202*L18^0.425*L19^0.725)","v":""}]
[]
[null,"Tâches réalisées pendant l'acticité de travail",null,null,null,null,null,null,null,null,null,null,null,null,null,null,null,16,37.264789581298828,85.376861572265625]
[null,"Choisir la ou les activité(s) de travail à caractériser parmi celles proposées :"]
[]
[]
[]
[]
[]
[]
[null,"M0 : Métabolisme correspondant au repos",null,null,null,null,null,null,null,null,null,null,null,null,null,null,null,16,37.264789581298828,85.376861572265625]
[null,"Le métabolisme énergétique de repos du salarié dépend de son genre, homme ou femme, et de sa surface corporelle."]
[null,"Métabolisme M0",null,null,null,null,null,null,null,null,"W",{"$f":"IF(L20=\"\",\"\",IF(L17=\"Homme\",60*L20,55*L20))","v":""}]
[]
[null,"M1 : Métabolisme correspondant au déplacement sans port de charge",null,null,null,null,null,null,null,null,null,null,null,null,null,null,null,16,37.264789581298828,85.376861572265625]
[null,"Ce métabolisme dépend du poids du salarié, de sa vitesse de déplacement et de la pente du sol."]
[null,"Vitesse de déplacement",null,null,null,null,null,null,null,null,"km.h-1"]
[null,"Pente du sol ",null,null,null,null,null,null,null,null,"%"]
[null,"Métabolisme  M1",null,null,null,null,null,null,null,null,"W",{"$f":"IF(L36=\"\",\"\",IF(L36<6,(1.2+0.57*L36+0.1*L36*L37)*L18,(1.2+1.14*L36+0.05*L36*L37)*L18))","v":""}]
[]
[null,"M2 : Métabolisme correspondant au port de charge pendant un déplacement",null,null,null,null,null,null,null,null,null,null,null,null,null,null,null,16,37.264789581298828,85.376861572265625]
[null,"Ce métabolisme dépend du poids du salarié, de sa vitesse de déplacement, de la pente du sol, du poids de la charge portée et de la façon dont elle\nest portée."]
[null,"Vitesse de déplacement",null,null,null,null,null,null,null,null,"km.h-1"]
[null,"Pente du sol ",null,null,null,null,null,null,null,null,"%"]
[null,"Poids de la charge portée",null,null,null,null,null,null,null,null,"kg"]
[null,"Façon de porter la charge",null,null,null,null,null,null,null,null," ---"]
[null,"Métabolisme  M2",null,null,null,null,null,null,null,null,"W",{"$f":"IF(L42=\"\",\"\",IF(L45=\"bras le long du corps\",(69.8*0.01*(80+(2.43*L18+4.63*L44)*(L42/3.6)*(L42/3.6)+4.62*L44+0.379*(L44+L18)*L43*(L42/3.6))+69.8*0.024*L18),(69.8*0.01*(68+(2.54*L18+4.08*L44)*(L42/3.6)*(L42/3.6)+11.4*L44+0.379*(L44+L18)*L43*(L42/3.6))+69.8*0.024*L18)))","v":""}]
[]
[null,"M3 : Métabolisme correspondant à la montée ou descente d'escalier ou échelle",null,null,null,null,null,null,null,null,null,null,null,null,null,null,null,16,37.264789581298828,85.376861572265625]
[null,"Ce métabolisme dépend du type de dispositif emprunté (escalier ou échelle), du nombre de marches ou de barreaux le caractérisant et du sens d'utilisation en montée ou en descente. Si le salarié porte une charge cela est pris en compte. "]
[null,"Dispositif emprunté  pour la MONTEE : escalier ou échelle",null,null,null,null,null,null,null,null," ---"]
[null,"Dénivelé ",null,null,null,null,null,null,null,null,"m"]
[null,"Temps ",null,null,null,null,null,null,null,null,"seconde"]
[null,"Nombre de marches ou barreaux par minutes",null,null,null,null,null,null,null,null,"nbre/min",{"$f":"IF(L52=\"\",\"\",IF(L50=\"Echelle\",L51/L52/0.25*60,L51/L52/0.17*60))","v":""}]
[null,"Poids de la charge portée",null,null,null,null,null,null,null,null,"kg"]
[]
[null,"Dispositif emprunté pour la DESCENTE : escalier ou échelle",null,null,null,null,null,null,null,null," ---"]
[null,"Dénivelé ",null,null,null,null,null,null,null,null,"m"]
[null,"Temps ",null,null,null,null,null,null,null,null,"seconde"]
[null,"Nombre de marches ou barreaux par minutes",null,null,null,null,null,null,null,null,"nbre/min",{"$f":"IF(L58=\"\",\"\",IF(L56=\"Echelle\",L57/L58/0.25*60,L57/L58/0.17*60))","v":""}]
[null,"Poids de la charge portée",null,null,null,null,null,null,null,null,"kg"]
[null,null,null,null,null,null,null,null,null,null,null,{"$f":"(IF(L50=\"Escalier\",(0.42+L53/10)*(L18+L54),(2.78+L53/4)*(L18+L54))+IF(L56=\"Escalier\",(0.42+L59/28)*(L18+L60),(1.98+L59/23)*(L18+L60)))/2","v":{"$error":"#VALUE!"}}]
[]
[null,"Métabolisme M3",null,null,null,null,null,null,null,null,"W",{"$f":"IF(OR(L50=\"\",L51=\"\",L52=\"\",L54=\"\",L56=\"\",L57=\"\",L58=\"\",L60=\"\"),\"\",IF(L61<L32,L32,L61))","v":""}]
[]
[null,"M4 : Métabolisme correspondant au soulèvement ou abaissement d'une charge",null,null,null,null,null,null,null,null,null,null,null,null,null,null,null,16,37.264789581298828,85.376861572265625]
[null,"Ce métabolisme prend en compte le transport, le levage et l'abaissement de charges. Il dépend du type de position dans laquelle se trouve le salarié, de la hauteur de levage, de la fréquence de mouvement et du poids de la charge. Il se calcule par une augmentation de métabolisme DM par rapport au métabolisme de repos M0. "]
[null,"Hauteur de levage",null,null,null,null,null,null,null,null,"m"]
[null,"Taux de mouvement",null,null,null,null,null,null,null,null,"nbre/min"]
[null,"Poids de la charge portée",null,null,null,null,null,null,null,null,"kg"]
[null,"Choix de la situation correspondant à l'acitivité proposée parmi la liste ci-après :",null,null,null,null,null,null,null,null," ---"]
[null,"A","Au repos et attente en portant une charge",null,null,null,null,null,null,null,"W",{"$f":"IF(L32=\"\",\"\",4.12*L69+L32)","v":""}]
[null,"B","Soulever la charge en se penchant",null,null,null,null,null,null,null,"W",{"$f":"IF(L32=\"\",\"\",(0.09*L18+L69*L67)*L68+L32)","v":""}]
[null,"C","Soulever la charge en levant les bras",null,null,null,null,null,null,null,"W",{"$f":"IF(L32=\"\",\"\",(0.02*L18+1.45*L69*L67)*L68+L32)","v":""}]
[null,"D","Soulever la charge en s'accroupissant",null,null,null,null,null,null,null,"W",{"$f":"IF(L32=\"\",\"\",(0.14*L18+1.75*L67*L69)*L68+L32)","v":""}]
[null,"E","Abaisser la charge en se penchant",null,null,null,null,null,null,null,"W",{"$f":"IF(L32=\"\",\"\",(0.08*L18+0.47*L69*L67+0.726)*L68+L32)","v":""}]
[null,"F","Abaisser la charge en baissant les bras",null,null,null,null,null,null,null,"W",{"$f":"IF(L32=\"\",\"\",(0.03*L18+0.84*L69*L67)*L68+L32)","v":""}]
[null,"G","Abaisser la charge en s'accroupissant",null,null,null,null,null,null,null,"W",{"$f":"IF(L32=\"\",\"\",(0.14*L18+0.49*L69*L67)*L68+L32)","v":""}]
[]
[null,"Métabolisme M4",null,null,null,null,null,null,null,null,"W",{"$f":"IF(OR(L67=\"\",L68=\"\",L69=\"\",L70=\"\"),\"\",IF(L70=\"A\",L71,IF(L70=\"B\",L72,IF(L70=\"C\",L73,IF(L70=\"D\",L74,IF(L70=\"E\",L75,IF(L70=\"F\",L76,L77)))))))","v":""}]
[]
[null,"M5 : Métabolisme correspondant à l'observation des parties du corps sollicitées ",null,null,null,null,null,null,null,null,null,null,null,null,null,null,null,16,37.264789581298828,85.376861572265625]
[null,"Ce métabolisme est estimé pour les situations de travail sans déplacement par observation des parties du corps sollicitées. La posture du salarié est prise en compte."]
[null,"Le tableau ci-dessous regroupe le métabolisme énergétique (en W) pour un sujet assis en fonction de l'intensité de travail et de la partie du corps impliquée"]
[]
[null,null,"Parties du corps",null,"Intensité de travail :\nlégère",null,"Intensité de travail : modérée",null,"Intensité de travail :\nélevée"]
[null,null,"Deux mains",null,125,null,155,null,170]
[null,null,"Un bras",null,160,null,200,null,235]
[null,null,"Deux bras",null,215,null,250,null,290]
[null,null,"Corps entier",null,325,null,440,null,605]
[]
[null,"Reporter le métabolisme correspondant à la tâche de travail observée (tableau ci-dessus)",null,null,null,null,null,null,null,null,"W"]
[null,"Préciser la posture du salarié",null,null,null,null,null,null,null,null," ---"]
[null,"Métabolisme M5",null,null,null,null,null,null,null,null,"W",{"$f":"IF(L92=\"\",\"\",L91+IF(L92=\"Assis\",0,IF(L92=\"Accroupi\",20,IF(L92=\"Debout\",25,35))))","v":""}]
[]
[null,"M6 : Métabolisme pour des activités très spécifiques",null,null,null,null,null,null,null,null,null,null,null,null,null,null,null,16,37.264789581298828,85.376861572265625]
[null,"Le tableau ci-après regroupe des métabolismes énergétiques (en W) pour des activités très spécifiques"]
[null,"Pousser ou tirer un wagonnet à bascule, à 3,6 km/h, sur un terrain régulier et dur "]
[null,"Force de poussée de 12 kg",null,null,null,null,null,null,null,null,"W",520]
[null,"Force de traction de 16 kg",null,null,null,null,null,null,null,null,"W",675]
[null,"Pousser une brouette sur un terrain régulier, à 4,5 km/h, roues  à  bandage en caoutchouc, charge de 100 kg",null,null,null,null,null,null,null,null,"W",415]
[null,"Limage de fer"]
[null,"42 coups par minute",null,null,null,null,null,null,null,null,"W",180]
[null,"60 cous par minute",null,null,null,null,null,null,null,null,"W",340]
[null,"Travail au marteau (4,4 kg)  à 2 mains et environ 15 coups par minute",null,null,null,null,null,null,null,null,"W",520]
[null,"Travail de menuiserie, sciage  à  la main",null,null,null,null,null,null,null,null,"W",395]
[null,"Sciage à la machine",null,null,null,null,null,null,null,null,"W",180]
[null,"Planage à la main",null,null,null,null,null,null,null,null,"W",540]
[null,"Pose de briques, 5 briques par minute",null,null,null,null,null,null,null,null,"W",305]
[null,"Visser",null,null,null,null,null,null,null,null,"W",180]
[null,"Creuser une tranchée",null,null,null,null,null,null,null,null,"W",520]
[null,"Activités domestiques "]
[null,"Légères",null,null,null,null,null,null,null,null,"W",{"$f":"IF(L32=\"\",\"\",2.5*L32)","v":""}]
[null,"Modérées",null,null,null,null,null,null,null,null,"W",{"$f":"IF(L32=\"\",\"\",3.5*L32)","v":""}]
[null,"Intenses",null,null,null,null,null,null,null,null,"W",{"$f":"IF(L32=\"\",\"\",4.5*L32)","v":""}]
[]
[null,"Métabolisme M6 : reporter la valeur à sélectionner dans le tableau ci-dessus",null,null,null,null,null,null,null,null,"W"]
[]
[null,"Détermination du métabolisme global  "]
[null,"Dans le tableau ci-dessous reporter les durées de chaque tâche de travail ; si une activité n'a pas été observée, mettre \"0\"."]
[]
[null,null,null,null,"M0 \nRepos - Sédentarité","M1\nDéplacement ","M2\nPort de Charge","M3\nMonter - Descendre (escalier ou échelle)","M4\nsoulever - abaisser une charge","M5\nActivité sans déplacement observée","M6\nActivités spécifiques"]
[null,"Métabolisme en W",null,null,{"$f":"IF(L32=\"\",0,L32)","v":0},{"$f":"IF(L38=\"\",0,L38)","v":0},{"$f":"IF(L46=\"\",0,L46)","v":0},{"$f":"IF(L63=\"\",0,L63)","v":0},{"$f":"IF(L79=\"\",0,L79)","v":0},{"$f":"IF(L93=\"\",0,L93)","v":0},{"$f":"IF(L116=\"\",0,L116)","v":0}]
[null,"Temps associé en min"]
[]
[null,"Durée du poste de travail ",null,null,null,null,null,null,null,null,"min",{"$f":"SUM(E123:K123)","v":0}]
[]
[null,"Métabolisme global ",null,null,null,null,null,null,null,null,"W",{"$f":"IF(L125=0,0,(E122*E123+F122*F123+G122*G123+H122*H123+I122*I123+J122*J123+K122*K123)/L125)","v":0}]
[]
[null,"Métabolisme global ramené à la surface corporelle",null,null,null,null,null,null,null,null,"W.m-2",{"$f":"IF(L20=\"\",0,L127/L20)","v":0}]

{"sheet":"Liste déroulante","index":4,"n_rows":21,"n_cols":8,"rows_kept":21,"cut":false,"hidden":true,"merged":[]}
[]
[null,"Liste  pour l'onglet METABOLISME",null,null,null,"Liste  pour l'onglet ATP (CHAUD)"]
[]
[null,"Homme",null,"En montée",null,"Debout"]
[null,"Femme",null,"En descente",null,"Assis"]
[null,null,null,null,null,"Accroupi"]
[null,"Escalier",null,"A",null,null,null,"EAU"]
[null,"Echelle",null,"B",null,"Marche","Sens marche","Acclimaté"]
[null,null,null,"C",null,"Oui","Oui","Oui"]
[null,"Assis",null,"D",null,"Non","Non","Non"]
[null,"Accroupi",null,"E"]
[null,"Debout",null,"F"]
[null,"Debout penché",null,"G"]
[]
[]
[]
[null,"Façon de porter la charge",null,null,null,"Liste  pour l'onglet CONFORT"]
[]
[null,"bras le long du corps",null,null,null,"A"]
[null,"contre le torse",null,null,null,"B"]
[null,null,null,null,null,"C"]

{"sheet":"Contrainte chaude","index":5,"n_rows":481,"n_cols":22,"rows_kept":481,"cut":false,"hidden":false,"merged":[[23,1,23,11],[17,1,17,9],[18,1,18,9],[19,1,19,9],[20,1,20,9],[21,1,21,9],[60,1,60,10],[54,1,54,7],[56,1,56,7],[57,1,57,7],[42,1,42,7],[58,1,58,8],[45,1,45,7],[43,1,43,7],[44,1,44,7],[51,1,51,11],[63,3,63,4],[30,1,30,7],[32,1,32,7],[34,1,34,7],[35,1,35,7],[37,1,37,7],[36,1,36,7],[38,1,38,7],[39,1,39,7],[40,1,40,7],[47,1,47,7],[48,1,48,7],[53,1,53,7],[52,1,52,8],[46,1,46,7],[31,1,31,7],[7,1,7,11],[1,3,1,10],[3,3,3,10],[16,1,16,11],[11,9,11,11],[24,1,24,11],[25,1,25,8],[50,9,50,11],[26,1,26,7],[41,1,41,7],[29,1,29,7],[27,1,27,7],[28,1,28,7]]}
[null,null,null,null,null,null,null,null,null,null,null,null,null,null,null,null,null,"Time\n(min)","T. rectale (°C)","Pertes hydriques (g)","Limite pertes hydriques (g)\nsi accès à l'eau","Limite élévation de température rectale (°C)"]
[null,null,null,"Indicateur d'Ambiance Thermique",null,null,null,null,null,null,null,null,null,null,null,null,null,null,null,null,3000,37.799999999999997]
[null,null,null,null,null,null,null,null,null,null,null,null,null,null,null,null,null,null,null,null,3000,37.799999999999997]
[null,null,null,"Outil d’évaluation des ambiances thermiques",null,null,null,null,null,null,null,null,null,null,null,null,null,null,null,null,3000,37.799999999999997]
[null,null,null,null,null,null,null,null,null,null,null,null,null,null,null,null,null,null,null,null,3000,37.799999999999997]
[null,null,null,null,null,null,null,null,null,null,null,null,null,null,null,null,null,null,null,null,3000,37.799999999999997]
[null,"Calcul de l'astreinte thermique prévisible selon la norme NF EN ISO 7933:2023",null,null,null,null,null,null,null,null,null,null,null,null,null,null,null,null,null,null,3000,37.799999999999997]
[null,"La démarche ATP pour Astreinte Thermique Prévisible (ou PHS en anglais) est préconisée pour l'évaluation d'exposition à la chaleur. Elle est encadrée par la norme ISO 7933:2023 qui propose une méthode d'évaluation et d'interprétation de la contrainte thermique subie par un salarié. Cette contrainte repose sur deux valeurs d'astreinte que sont le débit sudoral et la température corporelle centrale que l'organisme humain met en œuvre en réaction aux conditions de travail à la chaleur.",null,null,null,null,null,null,null,null,null,null,null,null,null,null,null,null,null,null,3000,37.799999999999997]
[]
[null,null,null,null,null,null,null,null,null,null,null,null,null,null,null,null,null,null,null,null,3000,37.799999999999997]
[null,"A renseigner",null,"Résultats",null,"Valeurs calculées",null,null,null,null,null,null,null,null,null,null,null,null,null,null,3000,37.799999999999997]
[null,null,null,null,null,null,null,null,null,"Bouton permettant d'effacer les résultats d'un calcul précédent",null,null,null,null,null,null,null,null,null,null,3000,37.799999999999997]
[null,null,null,null,null,null,null,null,null,null,null,null,null,null,null,null,null,null,null,null,3000,37.799999999999997]
[null,null,null,null,null,null,null,null,null,null,null,null,null,null,null,null,null,null,null,null,3000,37.799999999999997]
[null,null,null,null,null,null,null,null,null,null,null,null,null,null,null,null,null,null,null,null,3000,37.799999999999997]
[null,null,null,null,null,null,null,null,null,null,null,null,null,null,null,null,null,null,null,null,3000,37.799999999999997]
[null,"Données relatives au salarié",null,null,null,null,null,null,null,null,null,null,null,null,null,null,null,null,null,null,3000,37.799999999999997]
[null,"Poids (prendre 75 kg par défaut si valeur non disponible)",null,null,null,null,null,null,null,null,"kg",null,null,null,null,null,null,null,null,null,3000,37.799999999999997]
[null,"Taille (prendre 1,80 m par défaut si valeur non disponible)",null,null,null,null,null,null,null,null,"m",null,null,null,null,null,null,null,null,null,3000,37.799999999999997]
[null,"Approvisionnement en eau",null,null,null,null,null,null,null,null," ---",null,null,null,null,null,null,null,null,null,3000,37.799999999999997]
[null,"Surface du corps",null,null,null,null,null,null,null,null,"m²",{"$f":"IF(OR(L18=\"\",L19=\"\"),\"\",0.202*L18^0.425*L19^0.725)","v":""},null,null,null,null,null,null,null,null,3000,37.799999999999997]
[null,"Chaleur massique du corps",null,null,null,null,null,null,null,null,"w/m².K",{"$f":"58.17*L18/L21","v":{"$error":"#VALUE!"}},null,null,null,null,null,null,null,null,3000,37.799999999999997]
[null,null,null,null,null,null,null,null,null,null,null,null,null,null,null,null,null,null,null,null,3000,37.799999999999997]
[null,"L'outil offre la possibilité de découper la journée de travail en séquences de travail et de repos. Les séquences de travail ne doivent pas être inférieures à 120 minutes et celles de repos à 30 minutes. La durée totale doit être de  480 minutes soit 8 heures.",null,null,null,null,null,null,null,null,null,null,null,null,null,null,null,null,null,null,3000,37.799999999999997]
[null,"Données relatives au poste de travail",null,null,null,null,null,null,null,null,null,null,null,null,null,null,null,null,null,null,3000,37.799999999999997]
[null,"Choisir pour chaque séquence s'il s'agit de TRAVAIL ou de REPOS",null,null,null,null,null,null,null,null,null,null,null,null,null,null,null,null,null,null,3000,37.799999999999997]
[null,"Durée ",null,null,null,null,null,null,"min",null,null,null,null,null,null,null,null,null,null,null,3000,37.799999999999997]
[null,"Température sèche de l'air (Ta)",null,null,null,null,null,null,"°C",null,null,null,null,null,null,null,null,null,null,null,3000,37.799999999999997]
[null,"Vitesse de l'air (Va)",null,null,null,null,null,null,"m/s",null,null,null,null,null,null,null,null,null,null,null,3000,37.799999999999997]
[null,"Pression saturation de vapeur d'eau ",null,null,null,null,null,null,"kPa",{"$f":"EXP(23.3265-3802.7/(J28+273.18)-(472.68/(J28+273.18))^2)/1000","v":0.60940219806557927},null,null,null,null,null,null,null,null,null,null,3000,37.799999999999997]
[null,"Humidité absolue",null,null,null,null,null,null,"g/kg air",{"$f":"(0.622*J30*1000)/(101325-J30*1000)*1000","v":3.7635497923789321},null,null,null,null,null,null,null,null,null,null,3000,37.799999999999997]
[null,"Humidité relative",null,null,null,null,null,null,"%",null,null,null,null,null,null,null,null,null,null,null,3000,37.799999999999997]
[null,"Hygrométrie relative",null,null,null,null,null,null,"g/m3",{"$f":"IF(OR(J28=\"\",J29=\"\",J32=\"\"),\"\",J32/100*J31*1.2)","v":""},{"$f":"IF(OR(K28=\"\",K29=\"\",K32=\"\"),\"\",K32/100*K31*1.2)","v":""},"",null,null,null,null,null,null,null,null,3000,37.799999999999997]
[null,null,null,null,null,null,null,null,null,null,null,null,null,null,null,null,null,null,null,null,3000,37.799999999999997]
[null,"Pression partielle de vapeur d'eau (Pa)",null,null,null,null,null,null,"kPa",{"$f":"IF(OR(J28=\"\",J29=\"\",J32=\"\"),\"\",J32*0.6105*EXP(17.27*J28/(J28+237.3))/100)","v":""},{"$f":"IF(OR(K28=\"\",K29=\"\",K32=\"\"),\"\",K32*0.6105*EXP(17.27*K28/(K28+237.3))/100)","v":""},"",null,null,null,null,null,null,null,null,3000,37.799999999999997]
[null,"Température du globe noir ",null,null,null,null,null,null,"°C",null,null,null,null,null,null,null,null,null,null,null,3000,37.799999999999997]
[null,"Température moyenne de rayonnement (Tr) pour un globe noir mat de diamètre 15 cm",null,null,null,null,null,null,"°C",{"$f":"IF(OR(J28=\"\",J29=\"\",J36=\"\"),\"\",((J36+273)^4+2.5*10^8*(J36-J28)*J29^0.6)^0.25-273)","v":""},{"$f":"IF(OR(K28=\"\",K29=\"\",K36=\"\"),\"\",((K36+273)^4+2.5*10^8*(K36-K28)*K29^0.6)^0.25-273)","v":""},"",null,null,null,null,null,null,null,null,3000,37.799999999999997]
[null,"Métabolisme (M)",null,null,null,null,null,null,"W/m²",null,null,null,null,null,null,null,null,null,null,null,3000,37.799999999999997]
[null,"Puissance mécanique utile (prendre \"0\" par défaut si valeur non disponible)",null,null,null,null,null,null,"W/m²",null,null,null,null,null,null,null,null,null,null,null,3000,37.799999999999997]
[null,"Posture (assis - accroupi - debout) ",null,null,null,null,null,null," ---",null,null,null,null,null,null,null,null,null,null,null,3000,37.799999999999997]
[null,"Isolement thermique vestimentaire (Iclo)",null,null,null,null,null,null,"Clo",null,null,null,null,null,null,null,null,null,null,null,3000,37.799999999999997]
[null,"Fraction du corps couverte par le vêtement réfléchissant (prendre \"0,54\" par défaut)",null,null,null,null,null,null," ---",null,null,null,null,null,null,null,null,null,null,null,3000,37.799999999999997]
[null,"Emissivité du vêtement réfléchissant (prendre \"0,97\" par défaut si valeur non disponible)",null,null,null,null,null,null," ---",null,null,null,null,null,null,null,null,null,null,null,3000,37.799999999999997]
[null,"Indice de perméabilité statique à l'humidité (prendre \"0,38\" par défaut si valeur non disponible)",null,null,null,null,null,null," ---",null,null,null,null,null,null,null,null,null,null,null,3000,37.799999999999997]
[null,"Le salarié se déplace-t-il en marchant ? (oui ou non)",null,null,null,null,null,null," ---",null,null,null,null,null,null,null,null,null,null,null,3000,37.799999999999997]
[null,"Si oui, indiquer sa vitesse de marche",null,null,null,null,null,null,"m/s",null,null,null,null,null,null,null,null,null,null,null,3000,37.799999999999997]
[null,"Le sens de marche est-il défini ? (oui ou non)",null,null,null,null,null,null," ---",null,null,null,null,null,null,null,null,null,null,null,3000,37.799999999999997]
[null,"Si oui, indiquer l'angle entre le sens de marche et la direction du vent",null,null,null,null,null,null,"deg",null,null,null,null,null,null,null,null,null,null,null,3000,37.799999999999997]
[null,"Le sujet est-il acclimaté ? (oui ou non)",null,null,null,null,null,null," ---",null,null,null,null,null,null,null,null,null,null,null,3000,37.799999999999997]
[null,null,null,null,null,null,null,null,null,null,null,null,null,null,null,null,null,null,null,null,3000,37.799999999999997]
[null,null,null,null,null,null,null,null,null,"Bouton permettant de lancer les calculs avec les données saisies",null,null,null,null,null,null,null,null,null,null,3000,37.799999999999997]
[null,"Résultats de la contrainte thermique selon la méthode ATP",null,null,null,null,null,null,null,null,null,null,null,null,null,null,null,null,null,null,3000,37.799999999999997]
[null,null,null,null,null,null,null,null,null,{"$f":"J26","v":0},{"$f":"K26","v":0},0,null,null,null,null,null,null,null,null,3000,37.799999999999997]
[null,"Température rectale à la fin de la séquence de travail",null,null,null,null,null,null,"°C",null,null,null,null,null,null,null,null,null,null,null,3000,37.799999999999997]
[null,"Pertes hydriques à la fin de la séquence de travail",null,null,null,null,null,null,"g",null,null,null,null,null,null,null,null,null,null,null,3000,37.799999999999997]
[null,null,null,null,null,null,null,null,null,null,null,null,null,null,null,null,null,null,null,null,3000,37.799999999999997]
[null,"Durée limite d'exposition vis-à-vis du stockage de chaleur",null,null,null,null,null,null,"min",null,null,null,null,null,null,null,null,null,null,null,3000,37.799999999999997]
[null,"Durée limite d'exposition vis-à-vis de la perte hydrique ",null,null,null,null,null,null,"min",null,null,null,null,null,null,null,null,null,null,null,3000,37.799999999999997]
[null," ð Détail relatif à la limite d'exposition",null,null,null,null,null,null,null,null,null,null,null,null,null,null,null,null,null,null,3000,37.799999999999997]
[null,null,null,null,null,null,null,null,null,null,null,null,null,null,null,null,null,null,null,null,3000,37.799999999999997]
[null,"Des limites de prévention, lègèrement plus contraingnantes que celles de la norme sont considérées ici comme valeurs d'astreinte:\n• une élévation maximale de la température centrale du corps de 0,8 °C et\n• une perte hydrique de 5% de la masse corporelle plafonnée à 3 000 g pour un salarié ayant accès à l’eau.",null,null,null,null,null,null,null,null,null,null,null,null,null,null,null,null,null,null,3000,37.799999999999997]
[null,null,null,null,null,null,null,null,null,null,null,null,null,null,null,null,null,null,null,null,3000,37.799999999999997]
[null,null,null,null,null,null,null,null,null,null,null,null,null,null,null,null,null,null,null,null,3000,37.799999999999997]
[null,null,null,null,null,null,null,null,null,null,null,null,null,null,null,null,null,null,null,null,3000,37.799999999999997]
[null,null,null,null,null,null,null,null,null,null,null,null,null,null,null,null,null,null,null,null,3000,37.799999999999997]
[null,null,null,null,null,null,null,null,null,null,null,null,null,null,null,null,null,null,null,null,3000,37.799999999999997]
[null,null,null,null,null,null,null,null,null,null,null,null,null,null,null,null,null,null,null,null,3000,37.799999999999997]
[null,null,null,null,null,null,null,null,null,null,null,null,null,null,null,null,null,null,null,null,3000,37.799999999999997]
[null,null,null,null,null,null,null,null,null,null,null,null,null,null,null,null,null,null,null,null,3000,37.799999999999997]
[null,null,null,null,null,null,null,null,null,null,null,null,null,null,null,null,null,null,null,null,3000,37.799999999999997]
[null,null,null,null,null,null,null,null,null,null,null,null,null,null,null,null,null,null,null,null,3000,37.799999999999997]
[null,null,null,null,null,null,null,null,null,null,null,null,null,null,null,null,null,null,null,null,3000,37.799999999999997]
[null,null,null,null,null,null,null,null,null,null,null,null,null,null,null,null,null,null,null,null,3000,37.799999999999997]
[null,null,null,null,null,null,null,null,null,null,null,null,null,null,null,null,null,null,null,null,3000,37.799999999999997]
[null,null,null,null,null,null,null,null,null,null,null,null,null,null,null,null,null,null,null,null,3000,37.799999999999997]
[null,null,null,null,null,null,null,null,null,null,null,null,null,null,null,null,null,null,null,null,3000,37.799999999999997]
[null,null,null,null,null,null,null,null,null,null,null,null,null,null,null,null,null,null,null,null,3000,37.799999999999997]
[null,null,null,null,null,null,null,null,null,null,null,null,null,null,null,null,null,null,null,null,3000,37.799999999999997]
[null,null,null,null,null,null,null,null,null,null,null,null,null,null,null,null,null,null,null,null,3000,37.799999999999997]
[null,null,null,null,null,null,null,null,null,null,null,null,null,null,null,null,null,null,null,null,3000,37.799999999999997]
[null,null,null,null,null,null,null,null,null,null,null,null,null,null,null,null,null,null,null,null,3000,37.799999999999997]
[null,null,null,null,null,null,null,null,null,null,null,null,null,null,null,null,null,null,null,null,3000,37.799999999999997]
[null,null,null,null,null,null,null,null,null,null,null,null,null,null,null,null,null,null,null,null,3000,37.799999999999997]
[null,null,null,null,null,null,null,null,null,null,null,null,null,null,null,null,null,null,null,null,3000,37.799999999999997]
[null,null,null,null,null,null,null,null,null,null,null,null,null,null,null,null,null,null,null,null,3000,37.799999999999997]
[null,null,null,null,null,null,null,null,null,null,null,null,null,null,null,null,null,null,null,null,3000,37.799999999999997]
[null,null,null,null,null,null,null,null,null,null,null,null,null,null,null,null,null,null,null,null,3000,37.799999999999997]
[null,null,null,null,null,null,null,null,null,null,null,null,null,null,null,null,null,null,null,null,3000,37.799999999999997]
[null,null,null,null,null,null,null,null,null,null,null,null,null,null,null,null,null,null,null,null,3000,37.799999999999997]
[null,null,null,null,null,null,null,null,null,null,null,null,null,null,null,null,null,null,null,null,3000,37.799999999999997]
[null,null,null,null,null,null,null,null,null,null,null,null,null,null,null,null,null,null,null,null,3000,37.799999999999997]
[null,null,null,null,null,null,null,null,null,null,null,null,null,null,null,null,null,null,null,null,3000,37.799999999999997]
[null,null,null,null,null,null,null,null,null,null,null,null,null,null,null,null,null,null,null,null,3000,37.799999999999997]
[null,null,null,null,null,null,null,null,null,null,null,null,null,null,null,null,null,null,null,null,3000,37.799999999999997]
[null,null,null,null,null,null,null,null,null,null,null,null,null,null,null,null,null,null,null,null,3000,37.799999999999997]
[null,null,null,null,null,null,null,null,null,null,null,null,null,null,null,null,null,null,null,null,3000,37.799999999999997]
[null,null,null,null,null,null,null,null,null,null,null,null,null,null,null,null,null,null,null,null,3000,37.799999999999997]
[null,null,null,null,null,null,null,null,null,null,null,null,null,null,null,null,null,null,null,null,3000,37.799999999999997]
[null,null,null,null,null,null,null,null,null,null,null,null,null,null,null,null,null,null,null,null,3000,37.799999999999997]
[null,null,null,null,null,null,null,null,null,null,null,null,null,null,null,null,null,null,null,null,3000,37.799999999999997]
[null,null,null,null,null,null,null,null,null,null,null,null,null,null,null,null,null,null,null,null,3000,37.799999999999997]
[null,null,null,null,null,null,null,null,null,null,null,null,null,null,null,null,null,null,null,null,3000,37.799999999999997]
[null,null,null,null,null,null,null,null,null,null,null,null,null,null,null,null,null,null,null,null,3000,37.799999999999997]
[null,null,null,null,null,null,null,null,null,null,null,null,null,null,null,null,null,null,null,null,3000,37.799999999999997]
[null,null,null,null,null,null,null,null,null,null,null,null,null,null,null,null,null,null,null,null,3000,37.799999999999997]
[null,null,null,null,null,null,null,null,null,null,null,null,null,null,null,null,null,null,null,null,3000,37.799999999999997]
[null,null,null,null,null,null,null,null,null,null,null,null,null,null,null,null,null,null,null,null,3000,37.799999999999997]
[null,null,null,null,null,null,null,null,null,null,null,null,null,null,null,null,null,null,null,null,3000,37.799999999999997]
[null,null,null,null,null,null,null,null,null,null,null,null,null,null,null,null,null,null,null,null,3000,37.799999999999997]
[null,null,null,null,null,null,null,null,null,null,null,null,null,null,null,null,null,null,null,null,3000,37.799999999999997]
[null,null,null,null,null,null,null,null,null,null,null,null,null,null,null,null,null,null,null,null,3000,37.799999999999997]
[null,null,null,null,null,null,null,null,null,null,null,null,null,null,null,null,null,null,null,null,3000,37.799999999999997]
[null,null,null,null,null,null,null,null,null,null,null,null,null,null,null,null,null,null,null,null,3000,37.799999999999997]
[null,null,null,null,null,null,null,null,null,null,null,null,null,null,null,null,null,null,null,null,3000,37.799999999999997]
[null,null,null,null,null,null,null,null,null,null,null,null,null,null,null,null,null,null,null,null,3000,37.799999999999997]
[null,null,null,null,null,null,null,null,null,null,null,null,null,null,null,null,null,null,null,null,3000,37.799999999999997]
[null,null,null,null,null,null,null,null,null,null,null,null,null,null,null,null,null,null,null,null,3000,37.799999999999997]
[null,null,null,null,null,null,null,null,null,null,null,null,null,null,null,null,null,null,null,null,3000,37.799999999999997]
[null,null,null,null,null,null,null,null,null,null,null,null,null,null,null,null,null,null,null,null,3000,37.799999999999997]
[null,null,null,null,null,null,null,null,null,null,null,null,null,null,null,null,null,null,null,null,3000,37.799999999999997]
[null,null,null,null,null,null,null,null,null,null,null,null,null,null,null,null,null,null,null,null,3000,37.799999999999997]
[null,null,null,null,null,null,null,null,null,null,null,null,null,null,null,null,null,null,null,null,3000,37.799999999999997]
[null,null,null,null,null,null,null,null,null,null,null,null,null,null,null,null,null,null,null,null,3000,37.799999999999997]
[null,null,null,null,null,null,null,null,null,null,null,null,null,null,null,null,null,null,null,null,3000,37.799999999999997]
[null,null,null,null,null,null,null,null,null,null,null,null,null,null,null,null,null,null,null,null,3000,37.799999999999997]
[null,null,null,null,null,null,null,null,null,null,null,null,null,null,null,null,null,null,null,null,3000,37.799999999999997]
[null,null,null,null,null,null,null,null,null,null,null,null,null,null,null,null,null,null,null,null,3000,37.799999999999997]
[null,null,null,null,null,null,null,null,null,null,null,null,null,null,null,null,null,null,null,null,3000,37.799999999999997]
[null,null,null,null,null,null,null,null,null,null,null,null,null,null,null,null,null,null,null,null,3000,37.799999999999997]
[null,null,null,null,null,null,null,null,null,null,null,null,null,null,null,null,null,null,null,null,3000,37.799999999999997]
[null,null,null,null,null,null,null,null,null,null,null,null,null,null,null,null,null,null,null,null,3000,37.799999999999997]
[null,null,null,null,null,null,null,null,null,null,null,null,null,null,null,null,null,null,null,null,3000,37.799999999999997]
[null,null,null,null,null,null,null,null,null,null,null,null,null,null,null,null,null,null,null,null,3000,37.799999999999997]
[null,null,null,null,null,null,null,null,null,null,null,null,null,null,null,null,null,null,null,null,3000,37.799999999999997]
[null,null,null,null,null,null,null,null,null,null,null,null,null,null,null,null,null,null,null,null,3000,37.799999999999997]
[null,null,null,null,null,null,null,null,null,null,null,null,null,null,null,null,null,null,null,null,3000,37.799999999999997]
[null,null,null,null,null,null,null,null,null,null,null,null,null,null,null,null,null,null,null,null,3000,37.799999999999997]
[null,null,null,null,null,null,null,null,null,null,null,null,null,null,null,null,null,null,null,null,3000,37.799999999999997]
[null,null,null,null,null,null,null,null,null,null,null,null,null,null,null,null,null,null,null,null,3000,37.799999999999997]
[null,null,null,null,null,null,null,null,null,null,null,null,null,null,null,null,null,null,null,null,3000,37.799999999999997]
[null,null,null,null,null,null,null,null,null,null,null,null,null,null,null,null,null,null,null,null,3000,37.799999999999997]
[null,null,null,null,null,null,null,null,null,null,null,null,null,null,null,null,null,null,null,null,3000,37.799999999999997]
[null,null,null,null,null,null,null,null,null,null,null,null,null,null,null,null,null,null,null,null,3000,37.799999999999997]
[null,null,null,null,null,null,null,null,null,null,null,null,null,null,null,null,null,null,null,null,3000,37.799999999999997]
[null,null,null,null,null,null,null,null,null,null,null,null,null,null,null,null,null,null,null,null,3000,37.799999999999997]
[null,null,null,null,null,null,null,null,null,null,null,null,null,null,null,null,null,null,null,null,3000,37.799999999999997]
[null,null,null,null,null,null,null,null,null,null,null,null,null,null,null,null,null,null,null,null,3000,37.799999999999997]
[null,null,null,null,null,null,null,null,null,null,null,null,null,null,null,null,null,null,null,null,3000,37.799999999999997]
[null,null,null,null,null,null,null,null,null,null,null,null,null,null,null,null,null,null,null,null,3000,37.799999999999997]
[null,null,null,null,null,null,null,null,null,null,null,null,null,null,null,null,null,null,null,null,3000,37.799999999999997]
[null,null,null,null,null,null,null,null,null,null,null,null,null,null,null,null,null,null,null,null,3000,37.799999999999997]
[null,null,null,null,null,null,null,null,null,null,null,null,null,null,null,null,null,null,null,null,3000,37.799999999999997]
[null,null,null,null,null,null,null,null,null,null,null,null,null,null,null,null,null,null,null,null,3000,37.799999999999997]
[null,null,null,null,null,null,null,null,null,null,null,null,null,null,null,null,null,null,null,null,3000,37.799999999999997]
[null,null,null,null,null,null,null,null,null,null,null,null,null,null,null,null,null,null,null,null,3000,37.799999999999997]
[null,null,null,null,null,null,null,null,null,null,null,null,null,null,null,null,null,null,null,null,3000,37.799999999999997]
[null,null,null,null,null,null,null,null,null,null,null,null,null,null,null,null,null,null,null,null,3000,37.799999999999997]
[null,null,null,null,null,null,null,null,null,null,null,null,null,null,null,null,null,null,null,null,3000,37.799999999999997]
[null,null,null,null,null,null,null,null,null,null,null,null,null,null,null,null,null,null,null,null,3000,37.799999999999997]
[null,null,null,null,null,null,null,null,null,null,null,null,null,null,null,null,null,null,null,null,3000,37.799999999999997]
[null,null,null,null,null,null,null,null,null,null,null,null,null,null,null,null,null,null,null,null,3000,37.799999999999997]
[null,null,null,null,null,null,null,null,null,null,null,null,null,null,null,null,null,null,null,null,3000,37.799999999999997]
[null,null,null,null,null,null,null,null,null,null,null,null,null,null,null,null,null,null,null,null,3000,37.799999999999997]
[null,null,null,null,null,null,null,null,null,null,null,null,null,null,null,null,null,null,null,null,3000,37.799999999999997]
[null,null,null,null,null,null,null,null,null,null,null,null,null,null,null,null,null,null,null,null,3000,37.799999999999997]
[null,null,null,null,null,null,null,null,null,null,null,null,null,null,null,null,null,null,null,null,3000,37.799999999999997]
[null,null,null,null,null,null,null,null,null,null,null,null,null,null,null,null,null,null,null,null,3000,37.799999999999997]
[null,null,null,null,null,null,null,null,null,null,null,null,null,null,null,null,null,null,null,null,3000,37.799999999999997]
[null,null,null,null,null,null,null,null,null,null,null,null,null,null,null,null,null,null,null,null,3000,37.799999999999997]
[null,null,null,null,null,null,null,null,null,null,null,null,null,null,null,null,null,null,null,null,3000,37.799999999999997]
[null,null,null,null,null,null,null,null,null,null,null,null,null,null,null,null,null,null,null,null,3000,37.799999999999997]
[null,null,null,null,null,null,null,null,null,null,null,null,null,null,null,null,null,null,null,null,3000,37.799999999999997]
[null,null,null,null,null,null,null,null,null,null,null,null,null,null,null,null,null,null,null,null,3000,37.799999999999997]
[null,null,null,null,null,null,null,null,null,null,null,null,null,null,null,null,null,null,null,null,3000,37.799999999999997]
[null,null,null,null,null,null,null,null,null,null,null,null,null,null,null,null,null,null,null,null,3000,37.799999999999997]
[null,null,null,null,null,null,null,null,null,null,null,null,null,null,null,null,null,null,null,null,3000,37.799999999999997]
[null,null,null,null,null,null,null,null,null,null,null,null,null,null,null,null,null,null,null,null,3000,37.799999999999997]
[null,null,null,null,null,null,null,null,null,null,null,null,null,null,null,null,null,null,null,null,3000,37.799999999999997]
[null,null,null,null,null,null,null,null,null,null,null,null,null,null,null,null,null,null,null,null,3000,37.799999999999997]
[null,null,null,null,null,null,null,null,null,null,null,null,null,null,null,null,null,null,null,null,3000,37.799999999999997]
[null,null,null,null,null,null,null,null,null,null,null,null,null,null,null,null,null,null,null,null,3000,37.799999999999997]
[null,null,null,null,null,null,null,null,null,null,null,null,null,null,null,null,null,null,null,null,3000,37.799999999999997]
[null,null,null,null,null,null,null,null,null,null,null,null,null,null,null,null,null,null,null,null,3000,37.799999999999997]
[null,null,null,null,null,null,null,null,null,null,null,null,null,null,null,null,null,null,null,null,3000,37.799999999999997]
[null,null,null,null,null,null,null,null,null,null,null,null,null,null,null,null,null,null,null,null,3000,37.799999999999997]
[null,null,null,null,null,null,null,null,null,null,null,null,null,null,null,null,null,null,null,null,3000,37.799999999999997]
[null,null,null,null,null,null,null,null,null,null,null,null,null,null,null,null,null,null,null,null,3000,37.799999999999997]
[null,null,null,null,null,null,null,null,null,null,null,null,null,null,null,null,null,null,null,null,3000,37.799999999999997]
[null,null,null,null,null,null,null,null,null,null,null,null,null,null,null,null,null,null,null,null,3000,37.799999999999997]
[null,null,null,null,null,null,null,null,null,null,null,null,null,null,null,null,null,null,null,null,3000,37.799999999999997]
[null,null,null,null,null,null,null,null,null,null,null,null,null,null,null,null,null,null,null,null,3000,37.799999999999997]
[null,null,null,null,null,null,null,null,null,null,null,null,null,null,null,null,null,null,null,null,3000,37.799999999999997]
[null,null,null,null,null,null,null,null,null,null,null,null,null,null,null,null,null,null,null,null,3000,37.799999999999997]
[null,null,null,null,null,null,null,null,null,null,null,null,null,null,null,null,null,null,null,null,3000,37.799999999999997]
[null,null,null,null,null,null,null,null,null,null,null,null,null,null,null,null,null,null,null,null,3000,37.799999999999997]
[null,null,null,null,null,null,null,null,null,null,null,null,null,null,null,null,null,null,null,null,3000,37.799999999999997]
[null,null,null,null,null,null,null,null,null,null,null,null,null,null,null,null,null,null,null,null,3000,37.799999999999997]
[null,null,null,null,null,null,null,null,null,null,null,null,null,null,null,null,null,null,null,null,3000,37.799999999999997]
[null,null,null,null,null,null,null,null,null,null,null,null,null,null,null,null,null,null,null,null,3000,37.799999999999997]
[null,null,null,null,null,null,null,null,null,null,null,null,null,null,null,null,null,null,null,null,3000,37.799999999999997]
[null,null,null,null,null,null,null,null,null,null,null,null,null,null,null,null,null,null,null,null,3000,37.799999999999997]
[null,null,null,null,null,null,null,null,null,null,null,null,null,null,null,null,null,null,null,null,3000,37.799999999999997]
[null,null,null,null,null,null,null,null,null,null,null,null,null,null,null,null,null,null,null,null,3000,37.799999999999997]
[null,null,null,null,null,null,null,null,null,null,null,null,null,null,null,null,null,null,null,null,3000,37.799999999999997]
[null,null,null,null,null,null,null,null,null,null,null,null,null,null,null,null,null,null,null,null,3000,37.799999999999997]
[null,null,null,null,null,null,null,null,null,null,null,null,null,null,null,null,null,null,null,null,3000,37.799999999999997]
[null,null,null,null,null,null,null,null,null,null,null,null,null,null,null,null,null,null,null,null,3000,37.799999999999997]
[null,null,null,null,null,null,null,null,null,null,null,null,null,null,null,null,null,null,null,null,3000,37.799999999999997]
[null,null,null,null,null,null,null,null,null,null,null,null,null,null,null,null,null,null,null,null,3000,37.799999999999997]
[null,null,null,null,null,null,null,null,null,null,null,null,null,null,null,null,null,null,null,null,3000,37.799999999999997]
[null,null,null,null,null,null,null,null,null,null,null,null,null,null,null,null,null,null,null,null,3000,37.799999999999997]
[null,null,null,null,null,null,null,null,null,null,null,null,null,null,null,null,null,null,null,null,3000,37.799999999999997]
[null,null,null,null,null,null,null,null,null,null,null,null,null,null,null,null,null,null,null,null,3000,37.799999999999997]
[null,null,null,null,null,null,null,null,null,null,null,null,null,null,null,null,null,null,null,null,3000,37.799999999999997]
[null,null,null,null,null,null,null,null,null,null,null,null,null,null,null,null,null,null,null,null,3000,37.799999999999997]
[null,null,null,null,null,null,null,null,null,null,null,null,null,null,null,null,null,null,null,null,3000,37.799999999999997]
[null,null,null,null,null,null,null,null,null,null,null,null,null,null,null,null,null,null,null,null,3000,37.799999999999997]
[null,null,null,null,null,null,null,null,null,null,null,null,null,null,null,null,null,null,null,null,3000,37.799999999999997]
[null,null,null,null,null,null,null,null,null,null,null,null,null,null,null,null,null,null,null,null,3000,37.799999999999997]
[null,null,null,null,null,null,null,null,null,null,null,null,null,null,null,null,null,null,null,null,3000,37.799999999999997]
[null,null,null,null,null,null,null,null,null,null,null,null,null,null,null,null,null,null,null,null,3000,37.799999999999997]
[null,null,null,null,null,null,null,null,null,null,null,null,null,null,null,null,null,null,null,null,3000,37.799999999999997]
[null,null,null,null,null,null,null,null,null,null,null,null,null,null,null,null,null,null,null,null,3000,37.799999999999997]
[null,null,null,null,null,null,null,null,null,null,null,null,null,null,null,null,null,null,null,null,3000,37.799999999999997]
[null,null,null,null,null,null,null,null,null,null,null,null,null,null,null,null,null,null,null,null,3000,37.799999999999997]
[null,null,null,null,null,null,null,null,null,null,null,null,null,null,null,null,null,null,null,null,3000,37.799999999999997]
[null,null,null,null,null,null,null,null,null,null,null,null,null,null,null,null,null,null,null,null,3000,37.799999999999997]
[null,null,null,null,null,null,null,null,null,null,null,null,null,null,null,null,null,null,null,null,3000,37.799999999999997]
[null,null,null,null,null,null,null,null,null,null,null,null,null,null,null,null,null,null,null,null,3000,37.799999999999997]
[null,null,null,null,null,null,null,null,null,null,null,null,null,null,null,null,null,null,null,null,3000,37.799999999999997]
[null,null,null,null,null,null,null,null,null,null,null,null,null,null,null,null,null,null,null,null,3000,37.799999999999997]
[null,null,null,null,null,null,null,null,null,null,null,null,null,null,null,null,null,null,null,null,3000,37.799999999999997]
[null,null,null,null,null,null,null,null,null,null,null,null,null,null,null,null,null,null,null,null,3000,37.799999999999997]
[null,null,null,null,null,null,null,null,null,null,null,null,null,null,null,null,null,null,null,null,3000,37.799999999999997]
[null,null,null,null,null,null,null,null,null,null,null,null,null,null,null,null,null,null,null,null,3000,37.799999999999997]
[null,null,null,null,null,null,null,null,null,null,null,null,null,null,null,null,null,null,null,null,3000,37.799999999999997]
[null,null,null,null,null,null,null,null,null,null,null,null,null,null,null,null,null,null,null,null,3000,37.799999999999997]
[null,null,null,null,null,null,null,null,null,null,null,null,null,null,null,null,null,null,null,null,3000,37.799999999999997]
[null,null,null,null,null,null,null,null,null,null,null,null,null,null,null,null,null,null,null,null,3000,37.799999999999997]
[null,null,null,null,null,null,null,null,null,null,null,null,null,null,null,null,null,null,null,null,3000,37.799999999999997]
[null,null,null,null,null,null,null,null,null,null,null,null,null,null,null,null,null,null,null,null,3000,37.799999999999997]
[null,null,null,null,null,null,null,null,null,null,null,null,null,null,null,null,null,null,null,null,3000,37.799999999999997]
[null,null,null,null,null,null,null,null,null,null,null,null,null,null,null,null,null,null,null,null,3000,37.799999999999997]
[null,null,null,null,null,null,null,null,null,null,null,null,null,null,null,null,null,null,null,null,3000,37.799999999999997]
[null,null,null,null,null,null,null,null,null,null,null,null,null,null,null,null,null,null,null,null,3000,37.799999999999997]
[null,null,null,null,null,null,null,null,null,null,null,null,null,null,null,null,null,null,null,null,3000,37.799999999999997]
[null,null,null,null,null,null,null,null,null,null,null,null,null,null,null,null,null,null,null,null,3000,37.799999999999997]
[null,null,null,null,null,null,null,null,null,null,null,null,null,null,null,null,null,null,null,null,3000,37.799999999999997]
[null,null,null,null,null,null,null,null,null,null,null,null,null,null,null,null,null,null,null,null,3000,37.799999999999997]
[null,null,null,null,null,null,null,null,null,null,null,null,null,null,null,null,null,null,null,null,3000,37.799999999999997]
[null,null,null,null,null,null,null,null,null,null,null,null,null,null,null,null,null,null,null,null,3000,37.799999999999997]
[null,null,null,null,null,null,null,null,null,null,null,null,null,null,null,null,null,null,null,null,3000,37.799999999999997]
[null,null,null,null,null,null,null,null,null,null,null,null,null,null,null,null,null,null,null,null,3000,37.799999999999997]
[null,null,null,null,null,null,null,null,null,null,null,null,null,null,null,null,null,null,null,null,3000,37.799999999999997]
[null,null,null,null,null,null,null,null,null,null,null,null,null,null,null,null,null,null,null,null,3000,37.799999999999997]
[null,null,null,null,null,null,null,null,null,null,null,null,null,null,null,null,null,null,null,null,3000,37.799999999999997]
[null,null,null,null,null,null,null,null,null,null,null,null,null,null,null,null,null,null,null,null,3000,37.799999999999997]
[null,null,null,null,null,null,null,null,null,null,null,null,null,null,null,null,null,null,null,null,3000,37.799999999999997]
[null,null,null,null,null,null,null,null,null,null,null,null,null,null,null,null,null,null,null,null,3000,37.799999999999997]
[null,null,null,null,null,null,null,null,null,null,null,null,null,null,null,null,null,null,null,null,3000,37.799999999999997]
[null,null,null,null,null,null,null,null,null,null,null,null,null,null,null,null,null,null,null,null,3000,37.799999999999997]
[null,null,null,null,null,null,null,null,null,null,null,null,null,null,null,null,null,null,null,null,3000,37.799999999999997]
[null,null,null,null,null,null,null,null,null,null,null,null,null,null,null,null,null,null,null,null,3000,37.799999999999997]
[null,null,null,null,null,null,null,null,null,null,null,null,null,null,null,null,null,null,null,null,3000,37.799999999999997]
[null,null,null,null,null,null,null,null,null,null,null,null,null,null,null,null,null,null,null,null,3000,37.799999999999997]
[null,null,null,null,null,null,null,null,null,null,null,null,null,null,null,null,null,null,null,null,3000,37.799999999999997]
[null,null,null,null,null,null,null,null,null,null,null,null,null,null,null,null,null,null,null,null,3000,37.799999999999997]
[null,null,null,null,null,null,null,null,null,null,null,null,null,null,null,null,null,null,null,null,3000,37.799999999999997]
[null,null,null,null,null,null,null,null,null,null,null,null,null,null,null,null,null,null,null,null,3000,37.799999999999997]
[null,null,null,null,null,null,null,null,null,null,null,null,null,null,null,null,null,null,null,null,3000,37.799999999999997]
[null,null,null,null,null,null,null,null,null,null,null,null,null,null,null,null,null,null,null,null,3000,37.799999999999997]
[null,null,null,null,null,null,null,null,null,null,null,null,null,null,null,null,null,null,null,null,3000,37.799999999999997]
[null,null,null,null,null,null,null,null,null,null,null,null,null,null,null,null,null,null,null,null,3000,37.799999999999997]
[null,null,null,null,null,null,null,null,null,null,null,null,null,null,null,null,null,null,null,null,3000,37.799999999999997]
[null,null,null,null,null,null,null,null,null,null,null,null,null,null,null,null,null,null,null,null,3000,37.799999999999997]
[null,null,null,null,null,null,null,null,null,null,null,null,null,null,null,null,null,null,null,null,3000,37.799999999999997]
[null,null,null,null,null,null,null,null,null,null,null,null,null,null,null,null,null,null,null,null,3000,37.799999999999997]
[null,null,null,null,null,null,null,null,null,null,null,null,null,null,null,null,null,null,null,null,3000,37.799999999999997]
[null,null,null,null,null,null,null,null,null,null,null,null,null,null,null,null,null,null,null,null,3000,37.799999999999997]
[null,null,null,null,null,null,null,null,null,null,null,null,null,null,null,null,null,null,null,null,3000,37.799999999999997]
[null,null,null,null,null,null,null,null,null,null,null,null,null,null,null,null,null,null,null,null,3000,37.799999999999997]
[null,null,null,null,null,null,null,null,null,null,null,null,null,null,null,null,null,null,null,null,3000,37.799999999999997]
[null,null,null,null,null,null,null,null,null,null,null,null,null,null,null,null,null,null,null,null,3000,37.799999999999997]
[null,null,null,null,null,null,null,null,null,null,null,null,null,null,null,null,null,null,null,null,3000,37.799999999999997]
[null,null,null,null,null,null,null,null,null,null,null,null,null,null,null,null,null,null,null,null,3000,37.799999999999997]
[null,null,null,null,null,null,null,null,null,null,null,null,null,null,null,null,null,null,null,null,3000,37.799999999999997]
[null,null,null,null,null,null,null,null,null,null,null,null,null,null,null,null,null,null,null,null,3000,37.799999999999997]
[null,null,null,null,null,null,null,null,null,null,null,null,null,null,null,null,null,null,null,null,3000,37.799999999999997]
[null,null,null,null,null,null,null,null,null,null,null,null,null,null,null,null,null,null,null,null,3000,37.799999999999997]
[null,null,null,null,null,null,null,null,null,null,null,null,null,null,null,null,null,null,null,null,3000,37.799999999999997]
[null,null,null,null,null,null,null,null,null,null,null,null,null,null,null,null,null,null,null,null,3000,37.799999999999997]
[null,null,null,null,null,null,null,null,null,null,null,null,null,null,null,null,null,null,null,null,3000,37.799999999999997]
[null,null,null,null,null,null,null,null,null,null,null,null,null,null,null,null,null,null,null,null,3000,37.799999999999997]
[null,null,null,null,null,null,null,null,null,null,null,null,null,null,null,null,null,null,null,null,3000,37.799999999999997]
[null,null,null,null,null,null,null,null,null,null,null,null,null,null,null,null,null,null,null,null,3000,37.799999999999997]
[null,null,null,null,null,null,null,null,null,null,null,null,null,null,null,null,null,null,null,null,3000,37.799999999999997]
[null,null,null,null,null,null,null,null,null,null,null,null,null,null,null,null,null,null,null,null,3000,37.799999999999997]
[null,null,null,null,null,null,null,null,null,null,null,null,null,null,null,null,null,null,null,null,3000,37.799999999999997]
[null,null,null,null,null,null,null,null,null,null,null,null,null,null,null,null,null,null,null,null,3000,37.799999999999997]
[null,null,null,null,null,null,null,null,null,null,null,null,null,null,null,null,null,null,null,null,3000,37.799999999999997]
[null,null,null,null,null,null,null,null,null,null,null,null,null,null,null,null,null,null,null,null,3000,37.799999999999997]
[null,null,null,null,null,null,null,null,null,null,null,null,null,null,null,null,null,null,null,null,3000,37.799999999999997]
[null,null,null,null,null,null,null,null,null,null,null,null,null,null,null,null,null,null,null,null,3000,37.799999999999997]
[null,null,null,null,null,null,null,null,null,null,null,null,null,null,null,null,null,null,null,null,3000,37.799999999999997]
[null,null,null,null,null,null,null,null,null,null,null,null,null,null,null,null,null,null,null,null,3000,37.799999999999997]
[null,null,null,null,null,null,null,null,null,null,null,null,null,null,null,null,null,null,null,null,3000,37.799999999999997]
[null,null,null,null,null,null,null,null,null,null,null,null,null,null,null,null,null,null,null,null,3000,37.799999999999997]
[null,null,null,null,null,null,null,null,null,null,null,null,null,null,null,null,null,null,null,null,3000,37.799999999999997]
[null,null,null,null,null,null,null,null,null,null,null,null,null,null,null,null,null,null,null,null,3000,37.799999999999997]
[null,null,null,null,null,null,null,null,null,null,null,null,null,null,null,null,null,null,null,null,3000,37.799999999999997]
[null,null,null,null,null,null,null,null,null,null,null,null,null,null,null,null,null,null,null,null,3000,37.799999999999997]
[null,null,null,null,null,null,null,null,null,null,null,null,null,null,null,null,null,null,null,null,3000,37.799999999999997]
[null,null,null,null,null,null,null,null,null,null,null,null,null,null,null,null,null,null,null,null,3000,37.799999999999997]
[null,null,null,null,null,null,null,null,null,null,null,null,null,null,null,null,null,null,null,null,3000,37.799999999999997]
[null,null,null,null,null,null,null,null,null,null,null,null,null,null,null,null,null,null,null,null,3000,37.799999999999997]
[null,null,null,null,null,null,null,null,null,null,null,null,null,null,null,null,null,null,null,null,3000,37.799999999999997]
[null,null,null,null,null,null,null,null,null,null,null,null,null,null,null,null,null,null,null,null,3000,37.799999999999997]
[null,null,null,null,null,null,null,null,null,null,null,null,null,null,null,null,null,null,null,null,3000,37.799999999999997]
[null,null,null,null,null,null,null,null,null,null,null,null,null,null,null,null,null,null,null,null,3000,37.799999999999997]
[null,null,null,null,null,null,null,null,null,null,null,null,null,null,null,null,null,null,null,null,3000,37.799999999999997]
[null,null,null,null,null,null,null,null,null,null,null,null,null,null,null,null,null,null,null,null,3000,37.799999999999997]
[null,null,null,null,null,null,null,null,null,null,null,null,null,null,null,null,null,null,null,null,3000,37.799999999999997]
[null,null,null,null,null,null,null,null,null,null,null,null,null,null,null,null,null,null,null,null,3000,37.799999999999997]
[null,null,null,null,null,null,null,null,null,null,null,null,null,null,null,null,null,null,null,null,3000,37.799999999999997]
[null,null,null,null,null,null,null,null,null,null,null,null,null,null,null,null,null,null,null,null,3000,37.799999999999997]
[null,null,null,null,null,null,null,null,null,null,null,null,null,null,null,null,null,null,null,null,3000,37.799999999999997]
[null,null,null,null,null,null,null,null,null,null,null,null,null,null,null,null,null,null,null,null,3000,37.799999999999997]
[null,null,null,null,null,null,null,null,null,null,null,null,null,null,null,null,null,null,null,null,3000,37.799999999999997]
[null,null,null,null,null,null,null,null,null,null,null,null,null,null,null,null,null,null,null,null,3000,37.799999999999997]
[null,null,null,null,null,null,null,null,null,null,null,null,null,null,null,null,null,null,null,null,3000,37.799999999999997]
[null,null,null,null,null,null,null,null,null,null,null,null,null,null,null,null,null,null,null,null,3000,37.799999999999997]
[null,null,null,null,null,null,null,null,null,null,null,null,null,null,null,null,null,null,null,null,3000,37.799999999999997]
[null,null,null,null,null,null,null,null,null,null,null,null,null,null,null,null,null,null,null,null,3000,37.799999999999997]
[null,null,null,null,null,null,null,null,null,null,null,null,null,null,null,null,null,null,null,null,3000,37.799999999999997]
[null,null,null,null,null,null,null,null,null,null,null,null,null,null,null,null,null,null,null,null,3000,37.799999999999997]
[null,null,null,null,null,null,null,null,null,null,null,null,null,null,null,null,null,null,null,null,3000,37.799999999999997]
[null,null,null,null,null,null,null,null,null,null,null,null,null,null,null,null,null,null,null,null,3000,37.799999999999997]
[null,null,null,null,null,null,null,null,null,null,null,null,null,null,null,null,null,null,null,null,3000,37.799999999999997]
[null,null,null,null,null,null,null,null,null,null,null,null,null,null,null,null,null,null,null,null,3000,37.799999999999997]
[null,null,null,null,null,null,null,null,null,null,null,null,null,null,null,null,null,null,null,null,3000,37.799999999999997]
[null,null,null,null,null,null,null,null,null,null,null,null,null,null,null,null,null,null,null,null,3000,37.799999999999997]
[null,null,null,null,null,null,null,null,null,null,null,null,null,null,null,null,null,null,null,null,3000,37.799999999999997]
[null,null,null,null,null,null,null,null,null,null,null,null,null,null,null,null,null,null,null,null,3000,37.799999999999997]
[null,null,null,null,null,null,null,null,null,null,null,null,null,null,null,null,null,null,null,null,3000,37.799999999999997]
[null,null,null,null,null,null,null,null,null,null,null,null,null,null,null,null,null,null,null,null,3000,37.799999999999997]
[null,null,null,null,null,null,null,null,null,null,null,null,null,null,null,null,null,null,null,null,3000,37.799999999999997]
[null,null,null,null,null,null,null,null,null,null,null,null,null,null,null,null,null,null,null,null,3000,37.799999999999997]
[null,null,null,null,null,null,null,null,null,null,null,null,null,null,null,null,null,null,null,null,3000,37.799999999999997]
[null,null,null,null,null,null,null,null,null,null,null,null,null,null,null,null,null,null,null,null,3000,37.799999999999997]
[null,null,null,null,null,null,null,null,null,null,null,null,null,null,null,null,null,null,null,null,3000,37.799999999999997]
[null,null,null,null,null,null,null,null,null,null,null,null,null,null,null,null,null,null,null,null,3000,37.799999999999997]
[null,null,null,null,null,null,null,null,null,null,null,null,null,null,null,null,null,null,null,null,3000,37.799999999999997]
[null,null,null,null,null,null,null,null,null,null,null,null,null,null,null,null,null,null,null,null,3000,37.799999999999997]
[null,null,null,null,null,null,null,null,null,null,null,null,null,null,null,null,null,null,null,null,3000,37.799999999999997]
[null,null,null,null,null,null,null,null,null,null,null,null,null,null,null,null,null,null,null,null,3000,37.799999999999997]
[null,null,null,null,null,null,null,null,null,null,null,null,null,null,null,null,null,null,null,null,3000,37.799999999999997]
[null,null,null,null,null,null,null,null,null,null,null,null,null,null,null,null,null,null,null,null,3000,37.799999999999997]
[null,null,null,null,null,null,null,null,null,null,null,null,null,null,null,null,null,null,null,null,3000,37.799999999999997]
[null,null,null,null,null,null,null,null,null,null,null,null,null,null,null,null,null,null,null,null,3000,37.799999999999997]
[null,null,null,null,null,null,null,null,null,null,null,null,null,null,null,null,null,null,null,null,3000,37.799999999999997]
[null,null,null,null,null,null,null,null,null,null,null,null,null,null,null,null,null,null,null,null,3000,37.799999999999997]
[null,null,null,null,null,null,null,null,null,null,null,null,null,null,null,null,null,null,null,null,3000,37.799999999999997]
[null,null,null,null,null,null,null,null,null,null,null,null,null,null,null,null,null,null,null,null,3000,37.799999999999997]
[null,null,null,null,null,null,null,null,null,null,null,null,null,null,null,null,null,null,null,null,3000,37.799999999999997]
[null,null,null,null,null,null,null,null,null,null,null,null,null,null,null,null,null,null,null,null,3000,37.799999999999997]
[null,null,null,null,null,null,null,null,null,null,null,null,null,null,null,null,null,null,null,null,3000,37.799999999999997]
[null,null,null,null,null,null,null,null,null,null,null,null,null,null,null,null,null,null,null,null,3000,37.799999999999997]
[null,null,null,null,null,null,null,null,null,null,null,null,null,null,null,null,null,null,null,null,3000,37.799999999999997]
[null,null,null,null,null,null,null,null,null,null,null,null,null,null,null,null,null,null,null,null,3000,37.799999999999997]
[null,null,null,null,null,null,null,null,null,null,null,null,null,null,null,null,null,null,null,null,3000,37.799999999999997]
[null,null,null,null,null,null,null,null,null,null,null,null,null,null,null,null,null,null,null,null,3000,37.799999999999997]
[null,null,null,null,null,null,null,null,null,null,null,null,null,null,null,null,null,null,null,null,3000,37.799999999999997]
[null,null,null,null,null,null,null,null,null,null,null,null,null,null,null,null,null,null,null,null,3000,37.799999999999997]
[null,null,null,null,null,null,null,null,null,null,null,null,null,null,null,null,null,null,null,null,3000,37.799999999999997]
[null,null,null,null,null,null,null,null,null,null,null,null,null,null,null,null,null,null,null,null,3000,37.799999999999997]
[null,null,null,null,null,null,null,null,null,null,null,null,null,null,null,null,null,null,null,null,3000,37.799999999999997]
[null,null,null,null,null,null,null,null,null,null,null,null,null,null,null,null,null,null,null,null,3000,37.799999999999997]
[null,null,null,null,null,null,null,null,null,null,null,null,null,null,null,null,null,null,null,null,3000,37.799999999999997]
[null,null,null,null,null,null,null,null,null,null,null,null,null,null,null,null,null,null,null,null,3000,37.799999999999997]
[null,null,null,null,null,null,null,null,null,null,null,null,null,null,null,null,null,null,null,null,3000,37.799999999999997]
[null,null,null,null,null,null,null,null,null,null,null,null,null,null,null,null,null,null,null,null,3000,37.799999999999997]
[null,null,null,null,null,null,null,null,null,null,null,null,null,null,null,null,null,null,null,null,3000,37.799999999999997]
[null,null,null,null,null,null,null,null,null,null,null,null,null,null,null,null,null,null,null,null,3000,37.799999999999997]
[null,null,null,null,null,null,null,null,null,null,null,null,null,null,null,null,null,null,null,null,3000,37.799999999999997]
[null,null,null,null,null,null,null,null,null,null,null,null,null,null,null,null,null,null,null,null,3000,37.799999999999997]
[null,null,null,null,null,null,null,null,null,null,null,null,null,null,null,null,null,null,null,null,3000,37.799999999999997]
[null,null,null,null,null,null,null,null,null,null,null,null,null,null,null,null,null,null,null,null,3000,37.799999999999997]
[null,null,null,null,null,null,null,null,null,null,null,null,null,null,null,null,null,null,null,null,3000,37.799999999999997]
[null,null,null,null,null,null,null,null,null,null,null,null,null,null,null,null,null,null,null,null,3000,37.799999999999997]
[null,null,null,null,null,null,null,null,null,null,null,null,null,null,null,null,null,null,null,null,3000,37.799999999999997]
[null,null,null,null,null,null,null,null,null,null,null,null,null,null,null,null,null,null,null,null,3000,37.799999999999997]
[null,null,null,null,null,null,null,null,null,null,null,null,null,null,null,null,null,null,null,null,3000,37.799999999999997]
[null,null,null,null,null,null,null,null,null,null,null,null,null,null,null,null,null,null,null,null,3000,37.799999999999997]
[null,null,null,null,null,null,null,null,null,null,null,null,null,null,null,null,null,null,null,null,3000,37.799999999999997]
[null,null,null,null,null,null,null,null,null,null,null,null,null,null,null,null,null,null,null,null,3000,37.799999999999997]
[null,null,null,null,null,null,null,null,null,null,null,null,null,null,null,null,null,null,null,null,3000,37.799999999999997]
[null,null,null,null,null,null,null,null,null,null,null,null,null,null,null,null,null,null,null,null,3000,37.799999999999997]
[null,null,null,null,null,null,null,null,null,null,null,null,null,null,null,null,null,null,null,null,3000,37.799999999999997]
[null,null,null,null,null,null,null,null,null,null,null,null,null,null,null,null,null,null,null,null,3000,37.799999999999997]
[null,null,null,null,null,null,null,null,null,null,null,null,null,null,null,null,null,null,null,null,3000,37.799999999999997]
[null,null,null,null,null,null,null,null,null,null,null,null,null,null,null,null,null,null,null,null,3000,37.799999999999997]
[null,null,null,null,null,null,null,null,null,null,null,null,null,null,null,null,null,null,null,null,3000,37.799999999999997]
[null,null,null,null,null,null,null,null,null,null,null,null,null,null,null,null,null,null,null,null,3000,37.799999999999997]
[null,null,null,null,null,null,null,null,null,null,null,null,null,null,null,null,null,null,null,null,3000,37.799999999999997]
[null,null,null,null,null,null,null,null,null,null,null,null,null,null,null,null,null,null,null,null,3000,37.799999999999997]
[null,null,null,null,null,null,null,null,null,null,null,null,null,null,null,null,null,null,null,null,3000,37.799999999999997]
[null,null,null,null,null,null,null,null,null,null,null,null,null,null,null,null,null,null,null,null,3000,37.799999999999997]
[null,null,null,null,null,null,null,null,null,null,null,null,null,null,null,null,null,null,null,null,3000,37.799999999999997]
[null,null,null,null,null,null,null,null,null,null,null,null,null,null,null,null,null,null,null,null,3000,37.799999999999997]
[null,null,null,null,null,null,null,null,null,null,null,null,null,null,null,null,null,null,null,null,3000,37.799999999999997]
[null,null,null,null,null,null,null,null,null,null,null,null,null,null,null,null,null,null,null,null,3000,37.799999999999997]
[null,null,null,null,null,null,null,null,null,null,null,null,null,null,null,null,null,null,null,null,3000,37.799999999999997]
[null,null,null,null,null,null,null,null,null,null,null,null,null,null,null,null,null,null,null,null,3000,37.799999999999997]
[null,null,null,null,null,null,null,null,null,null,null,null,null,null,null,null,null,null,null,null,3000,37.799999999999997]
[null,null,null,null,null,null,null,null,null,null,null,null,null,null,null,null,null,null,null,null,3000,37.799999999999997]
[null,null,null,null,null,null,null,null,null,null,null,null,null,null,null,null,null,null,null,null,3000,37.799999999999997]
[null,null,null,null,null,null,null,null,null,null,null,null,null,null,null,null,null,null,null,null,3000,37.799999999999997]
[null,null,null,null,null,null,null,null,null,null,null,null,null,null,null,null,null,null,null,null,3000,37.799999999999997]
[null,null,null,null,null,null,null,null,null,null,null,null,null,null,null,null,null,null,null,null,3000,37.799999999999997]
[null,null,null,null,null,null,null,null,null,null,null,null,null,null,null,null,null,null,null,null,3000,37.799999999999997]
[null,null,null,null,null,null,null,null,null,null,null,null,null,null,null,null,null,null,null,null,3000,37.799999999999997]
[null,null,null,null,null,null,null,null,null,null,null,null,null,null,null,null,null,null,null,null,3000,37.799999999999997]
[null,null,null,null,null,null,null,null,null,null,null,null,null,null,null,null,null,null,null,null,3000,37.799999999999997]
[null,null,null,null,null,null,null,null,null,null,null,null,null,null,null,null,null,null,null,null,3000,37.799999999999997]
[null,null,null,null,null,null,null,null,null,null,null,null,null,null,null,null,null,null,null,null,3000,37.799999999999997]
[null,null,null,null,null,null,null,null,null,null,null,null,null,null,null,null,null,null,null,null,3000,37.799999999999997]
[null,null,null,null,null,null,null,null,null,null,null,null,null,null,null,null,null,null,null,null,3000,37.799999999999997]
[null,null,null,null,null,null,null,null,null,null,null,null,null,null,null,null,null,null,null,null,3000,37.799999999999997]
[null,null,null,null,null,null,null,null,null,null,null,null,null,null,null,null,null,null,null,null,3000,37.799999999999997]
[null,null,null,null,null,null,null,null,null,null,null,null,null,null,null,null,null,null,null,null,3000,37.799999999999997]
[null,null,null,null,null,null,null,null,null,null,null,null,null,null,null,null,null,null,null,null,3000,37.799999999999997]
[null,null,null,null,null,null,null,null,null,null,null,null,null,null,null,null,null,null,null,null,3000,37.799999999999997]
[null,null,null,null,null,null,null,null,null,null,null,null,null,null,null,null,null,null,null,null,3000,37.799999999999997]
[null,null,null,null,null,null,null,null,null,null,null,null,null,null,null,null,null,null,null,null,3000,37.799999999999997]
[null,null,null,null,null,null,null,null,null,null,null,null,null,null,null,null,null,null,null,null,3000,37.799999999999997]
[null,null,null,null,null,null,null,null,null,null,null,null,null,null,null,null,null,null,null,null,3000,37.799999999999997]
[null,null,null,null,null,null,null,null,null,null,null,null,null,null,null,null,null,null,null,null,3000,37.799999999999997]
[null,null,null,null,null,null,null,null,null,null,null,null,null,null,null,null,null,null,null,null,3000,37.799999999999997]
[null,null,null,null,null,null,null,null,null,null,null,null,null,null,null,null,null,null,null,null,3000,37.799999999999997]
[null,null,null,null,null,null,null,null,null,null,null,null,null,null,null,null,null,null,null,null,3000,37.799999999999997]
[null,null,null,null,null,null,null,null,null,null,null,null,null,null,null,null,null,null,null,null,3000,37.799999999999997]
[null,null,null,null,null,null,null,null,null,null,null,null,null,null,null,null,null,null,null,null,3000,37.799999999999997]
[null,null,null,null,null,null,null,null,null,null,null,null,null,null,null,null,null,null,null,null,3000,37.799999999999997]
[null,null,null,null,null,null,null,null,null,null,null,null,null,null,null,null,null,null,null,null,3000,37.799999999999997]
[null,null,null,null,null,null,null,null,null,null,null,null,null,null,null,null,null,null,null,null,3000,37.799999999999997]
[null,null,null,null,null,null,null,null,null,null,null,null,null,null,null,null,null,null,null,null,3000,37.799999999999997]
[null,null,null,null,null,null,null,null,null,null,null,null,null,null,null,null,null,null,null,null,3000,37.799999999999997]
[null,null,null,null,null,null,null,null,null,null,null,null,null,null,null,null,null,null,null,null,3000,37.799999999999997]
[null,null,null,null,null,null,null,null,null,null,null,null,null,null,null,null,null,null,null,null,3000,37.799999999999997]
[null,null,null,null,null,null,null,null,null,null,null,null,null,null,null,null,null,null,null,null,3000,37.799999999999997]
[null,null,null,null,null,null,null,null,null,null,null,null,null,null,null,null,null,null,null,null,3000,37.799999999999997]
[null,null,null,null,null,null,null,null,null,null,null,null,null,null,null,null,null,null,null,null,3000,37.799999999999997]
[null,null,null,null,null,null,null,null,null,null,null,null,null,null,null,null,null,null,null,null,3000,37.799999999999997]
[null,null,null,null,null,null,null,null,null,null,null,null,null,null,null,null,null,null,null,null,3000,37.799999999999997]
[null,null,null,null,null,null,null,null,null,null,null,null,null,null,null,null,null,null,null,null,3000,37.799999999999997]
[null,null,null,null,null,null,null,null,null,null,null,null,null,null,null,null,null,null,null,null,3000,37.799999999999997]
[null,null,null,null,null,null,null,null,null,null,null,null,null,null,null,null,null,null,null,null,3000,37.799999999999997]
[null,null,null,null,null,null,null,null,null,null,null,null,null,null,null,null,null,null,null,null,3000,37.799999999999997]
[null,null,null,null,null,null,null,null,null,null,null,null,null,null,null,null,null,null,null,null,3000,37.799999999999997]
[null,null,null,null,null,null,null,null,null,null,null,null,null,null,null,null,null,null,null,null,3000,37.799999999999997]
[null,null,null,null,null,null,null,null,null,null,null,null,null,null,null,null,null,null,null,null,3000,37.799999999999997]
[null,null,null,null,null,null,null,null,null,null,null,null,null,null,null,null,null,null,null,null,3000,37.799999999999997]
[null,null,null,null,null,null,null,null,null,null,null,null,null,null,null,null,null,null,null,null,3000,37.799999999999997]
[null,null,null,null,null,null,null,null,null,null,null,null,null,null,null,null,null,null,null,null,3000,37.799999999999997]
[null,null,null,null,null,null,null,null,null,null,null,null,null,null,null,null,null,null,null,null,3000,37.799999999999997]
[null,null,null,null,null,null,null,null,null,null,null,null,null,null,null,null,null,null,null,null,3000,37.799999999999997]
[null,null,null,null,null,null,null,null,null,null,null,null,null,null,null,null,null,null,null,null,3000,37.799999999999997]
[null,null,null,null,null,null,null,null,null,null,null,null,null,null,null,null,null,null,null,null,3000,37.799999999999997]
[null,null,null,null,null,null,null,null,null,null,null,null,null,null,null,null,null,null,null,null,3000,37.799999999999997]
[null,null,null,null,null,null,null,null,null,null,null,null,null,null,null,null,null,null,null,null,3000,37.799999999999997]
[null,null,null,null,null,null,null,null,null,null,null,null,null,null,null,null,null,null,null,null,3000,37.799999999999997]
[null,null,null,null,null,null,null,null,null,null,null,null,null,null,null,null,null,null,null,null,3000,37.799999999999997]
[null,null,null,null,null,null,null,null,null,null,null,null,null,null,null,null,null,null,null,null,3000,37.799999999999997]
[null,null,null,null,null,null,null,null,null,null,null,null,null,null,null,null,null,null,null,null,3000,37.799999999999997]
[null,null,null,null,null,null,null,null,null,null,null,null,null,null,null,null,null,null,null,null,3000,37.799999999999997]
[null,null,null,null,null,null,null,null,null,null,null,null,null,null,null,null,null,null,null,null,3000,37.799999999999997]
[null,null,null,null,null,null,null,null,null,null,null,null,null,null,null,null,null,null,null,null,3000,37.799999999999997]
[null,null,null,null,null,null,null,null,null,null,null,null,null,null,null,null,null,null,null,null,3000,37.799999999999997]
[null,null,null,null,null,null,null,null,null,null,null,null,null,null,null,null,null,null,null,null,3000,37.799999999999997]
[null,null,null,null,null,null,null,null,null,null,null,null,null,null,null,null,null,null,null,null,3000,37.799999999999997]
[null,null,null,null,null,null,null,null,null,null,null,null,null,null,null,null,null,null,null,null,3000,37.799999999999997]

{"sheet":"Confort global","index":6,"n_rows":38,"n_cols":14,"rows_kept":38,"cut":false,"hidden":false,"merged":[[12,9,12,11],[1,3,1,10],[3,3,3,10],[49,7,49,8],[50,7,50,8],[45,7,45,8],[48,7,48,8],[47,7,47,8],[46,7,46,8],[29,1,29,9],[31,1,31,9],[16,1,16,9],[6,1,6,11],[7,1,7,11],[32,1,32,9],[33,1,33,9],[30,1,30,11],[13,1,13,11],[28,1,28,11],[14,1,14,9],[15,1,15,9],[17,1,17,9],[18,1,18,9],[21,1,21,9],[22,1,22,9],[23,1,23,9],[19,1,19,9],[24,1,24,9],[25,1,25,9],[26,1,26,9],[36,1,36,9],[37,1,37,9],[35,1,35,2],[35,3,35,4],[35,5,35,6],[35,7,35,8],[35,9,35,10]]}
[]
[null,null,null,"Indicateur d'Ambiance Thermique"]
[]
[null,null,null,"Outil d’évaluation des ambiances thermiques"]
[]
[]
[null,"Calcul des indices de confort thermique global PMV et PPD selon la norme \nNF EN ISO 7730:2005"]
[null,"Le confort thermique est la sensation de bien-être perçue lorsqu'on est exposé à une ambiance intérieure. Cette sensation thermique du corps peut être prédite en calculant deux indices : le vote moyen prévisible (PMV pour Predicted Mean Vote) et le pourcentage prévisible d’insatisfaits (PPD pour Predicted Percentage Dissatisfied). Ces indices renseignent sur l’inconfort thermique global, en estimant le pourcentage de personnes ayant trop chaud ou trop froid dans un environnement donné. "]
[]
[]
[null,"À renseigner ",null,"Résultats",null,"Valeurs calculées"]
[]
[null,null,null,null,null,null,null,null,null,"Bouton permettant d'effacer les résultats d'un calcul précédent"]
[null,"Données au poste de travail"]
[null,"Température de l'air (Ta)",null,null,null,null,null,null,null,null,"°C"]
[null,"Vitesse de l'air (Va)",null,null,null,null,null,null,null,null,"m/s"]
[null,"Pression de saturation de vapeur d'eau ",null,null,null,null,null,null,null,null,"kPa",{"$f":"EXP(23.3265-3802.7/(L15+273.18)-(472.68/(L15+273.18))^2)/1000","v":0.60940219806557927}]
[null,"Humidité absolue",null,null,null,null,null,null,null,null,"g/kg air",{"$f":"(0.622*L17*1000)/(101325-L17*1000)*1000","v":3.7635497923789321}]
[null,"Humidité relative",null,null,null,null,null,null,null,null,"%"]
[null,"Hygrométrie de l'air",null,null,null,null,null,null,null,null,"g/m3",{"$f":"IF(OR(L15=\"\",L16=\"\",L19=\"\"),\"\",L19/100*L18*1.2)","v":""}]
[]
[null,"Pression partielle de vapeur d'eau (Pa)",null,null,null,null,null,null,null,null,"kPa",{"$f":"IF(OR(L15=\"\",L19=\"\"),\"\",L19*0.6105*EXP(17.27*L15/(L15+237.3))/100)","v":""}]
[null,"Température du globe noir",null,null,null,null,null,null,null,null,"°C"]
[null,"Température moyenne de rayonnement (Tr) pour un globe noir mat de diamètre 15 cm",null,null,null,null,null,null,null,null,"°C",{"$f":"IF(OR(L15=\"\",L16=\"\",L23=\"\"),\"\",((L23+273)^4+2.5*10^8*(L23-L15)*L16^0.6)^0.25-273)","v":""}]
[null,"Métabolisme (M)",null,null,null,null,null,null,null,null,"W/m²"]
[null,"Isolement thermique vestimentaire (Iclo)",null,null,null,null,null,null,null,null,"Clo"]
[null,"Isolement thermique vestimentaire (Iclo)",null,null,null,null,null,null,null,null,"m².K/W",{"$f":"IF(L26=\"\",\"\",L26*0.155)","v":""}]
[]
[]
[null,"Choix de la catégorie d'ambiance thermique souhaitée",null,null,null,null,null,null,null,null," ---",null,null,"A"]
[null,"Information : L'INRS et les CARSAT recommandent d’assurer une ambiance thermique de catégorie B au minimum pour les locaux tertiaires (bureaux) et C au minimum pour les locaux industriels (ex : atelier).",null,null,null,null,null,null,null,null,null,null,null,"B"]
[null,"PMV",null,null,null,null,null,null,null,null," ---"]
[null,"PPD",null,null,null,null,null,null,null,null,"%"]
[null,"Température à la surface externe du vêtement",null,null,null,null,null,null,null,null,"°C"]
[null,null,null,null,null,null,null,null,null,null,null,27.975967407226563]
[null,"Interprétation : "]
[null," Pour la catégorie choisie, le PMV  ne devrait pas dépasser     +/-",null,null,null,null,null,null,null,null," ---",{"$f":"IF(L30=\"\",\"\",IF(L30=\"A\",\"0.2\",IF(L30=\"B\",\"0.5\",\"0.7\")))","v":""},null,"B"]
[null," Pour la catégorie choisie, le PPD  ou pourcentage de sujets insatisfaits ne devrait pas dépasser    ",null,null,null,null,null,null,null,null,"%",{"$f":"IF(L30=\"\",\"\",IF(L30=\"A\",6,IF(L30=\"B\",10,15)))","v":""},null,"C"]

{"sheet":"Confort local","index":7,"n_rows":66,"n_cols":12,"rows_kept":66,"cut":false,"hidden":false,"merged":[[63,1,63,9],[64,1,64,7],[64,8,64,11],[65,1,65,2],[65,3,65,11],[62,1,62,9],[54,1,54,9],[55,1,55,7],[55,8,55,11],[56,1,56,2],[56,3,56,11],[57,1,57,11],[58,1,58,9],[59,1,59,9],[60,1,60,9],[61,1,61,7],[61,8,61,11],[53,1,53,9],[44,1,44,7],[44,8,44,11],[45,1,45,2],[45,3,45,11],[47,1,47,11],[48,1,48,11],[49,1,49,9],[50,1,50,9],[51,1,51,9],[52,1,52,7],[52,8,52,11],[43,1,43,9],[32,1,32,9],[33,1,33,9],[34,1,34,9],[35,1,35,9],[36,1,36,9],[37,1,37,7],[37,8,37,11],[38,1,38,2],[38,3,38,11],[40,1,40,11],[41,1,41,9],[42,1,42,9],[31,1,31,11],[21,1,21,11],[22,1,22,9],[23,1,23,9],[24,1,24,9],[25,1,25,9],[26,1,26,9],[27,1,27,9],[28,1,28,7],[28,8,28,11],[29,1,29,2],[29,3,29,11],[18,3,18,4],[18,6,18,7],[18,8,18,9],[18,10,18,11],[19,3,19,4],[19,6,19,7],[19,8,19,9],[19,10,19,11],[15,10,15,11],[16,6,16,7],[16,8,16,9],[16,10,16,11],[17,3,17,4],[17,6,17,7],[17,8,17,9],[17,10,17,11],[15,8,15,9],[15,1,16,1],[15,2,16,2],[15,3,16,4],[15,5,16,5],[15,6,15,7],[14,2,14,4],[14,5,14,11],[1,3,1,10],[3,3,3,10],[6,1,6,11],[7,1,7,11],[12,9,12,11]]}
[]
[null,null,null,"Indicateur d'Ambiance Thermique"]
[]
[null,null,null,"Outil d’évaluation des ambiances thermiques"]
[]
[]
[null,"Calcul des indices d'inconfort thermique local selon la norme NF EN ISO 7730:2005"]
[null,"Le refroidissement ou réchauffement local non désiré d'une partie du corps conduit à une situation d'inconfort thermique local. Une attention particulière doit y être apportée. Ces infonforts peuvent être dûs à la présence de courants d'air, à une différence trop élevée de température verticale entre le sol et le plafond, à la présence de sols chauds ou froids ou encore à la présence de surfaces rayonnantes. Ci-après, des outils d'appréciation de l'inconfort thermique local pour chacune de ces causes. \n\nA l'exception du taux de courant d'air DR,  les résultats s'expriment en fonction d'un nombre de sujets insatisfaits minimum pour une catégorie d'ambiance souhaitée. Pour rappel, le tableau des catégories d'ambiance et seuils de confort issu de la NF EN 7730 :2005 est proposé ci-après."]
[]
[]
[null,"À renseigner",null,"Résultats",null,"Valeurs calculées"]
[]
[null,null,null,null,null,null,null,null,null,"Bouton permettant d'effacer les résultats d'un calcul précédent"]
[]
[null,null,"Indices de confort global",null,null,"Indices d'inconfort Local "]
[null,"Catégorie","PPD (%)","PMV",null,"DR (%)","PPD (%) ",null,"PPD (%) ",null,"PPD (%) "]
[null,null,null,null,null,null,"du à une différence verticale de température d'air",null,"du à un sol chaud ou froid",null,"du à une asymétrie de la température de rayonnement"]
[null,"A","< 6"," -0,2 < PMV < +0,2",null,"< 10","< 3",null,"< 10",null,"< 5 "]
[null,"B","< 10"," -0,5 < PMV < +0,5",null,"< 20","< 5",null,"< 10 ",null,"< 5"]
[null,"C","< 15"," -0,7 < PMV < +0,7",null,"< 30","< 10",null,"< 15",null,"< 10"]
[]
[null,"Courant d'air - Draught Rate (DR)"]
[null,"Température  locale de l'air (Ta,l)",null,null,null,null,null,null,null,null,"°C"]
[null,"Vitesse moyenne locale de l'air (Va,l)",null,null,null,null,null,null,null,null,"m/s"]
[null,"Ecart-type de la vitesse locale de l'air (sVa,l)",null,null,null,null,null,null,null,null,"m/s"]
[null,"Intensité locale de turbulence",null,null,null,null,null,null,null,null,"%",{"$f":"IF(OR(L24=\"\",L25=\"\"),\"\",L25/L24*100)","v":""}]
[null,"Catégorie d'ambiance souhaitée",null,null,null,null,null,null,null,null," ---"]
[null,"DR à  ne pas depasser",null,null,null,null,null,null,null,null,"%",{"$f":"IF(L27=\"\",\"\",IF(L27=\"A\",10,IF(L27=\"B\",20,30)))","v":""}]
[null,"Résultat : DR calculé (%)",null,null,null,null,null,null,{"$f":"IF(OR(L23=\"\",L24=\"\",L25=\"\"),\"\",IF(L24<0.05,(34-L23)*(0.05-0.05)^0.62*(0.37*L24*L26+3.14),IF((34-L23)*(L24-0.05)^0.62*(0.37*L24*L26+3.14)>100,100,(34-L23)*(L24-0.05)^0.62*(0.37*L24*L26+3.14))))","v":""}]
[null,"Interprétation :",null,{"$f":"IF(OR(L23=\"\",L24=\"\",L25=\"\"),\"\",IF(I29>L28,\"Attention, le taux de courant d'air est trop élevé pour cette catégorie d'ambiance\",\"Le taux de courant d'air est dans la plage attendue pour cette catégorie d'ambiance thermique\"))","v":""}]
[]
[null,"Différence verticale de température d'air Dta,v"]
[null,"Température au niveau de la tête (Ttête)",null,null,null,null,null,null,null,null,"°C"]
[null,"Température au niveau des pieds (Tpieds)",null,null,null,null,null,null,null,null,"°C"]
[null,"Ecart de température tête-pieds (Dta,v)",null,null,null,null,null,null,null,null,"°C",{"$f":"IF(OR(L33=\"\",L34=\"\"),\"\",L33-L34)","v":""}]
[null,"Catégorie d'ambiance souhaitée",null,null,null,null,null,null,null,null," ---"]
[null,"Pourcentage de personnes insatisfaites à ne pas dépasser",null,null,null,null,null,null,null,null,"%",{"$f":"IF(L36=\"\",\"\",IF(L36=\"A\",3,IF(L36=\"B\",5,10)))","v":""}]
[null,"Résultat : Pourcentage de personnes insatisfaites (%)",null,null,null,null,null,null,{"$f":"IF(OR(L33=\"\",L34=\"\"),\"\",IF(L35<8,100/(1+EXP(5.76-0.856*L35)),\"Attention : différence verticale trop élevée\nmodèle inapplicable\"))","v":""}]
[null,"Interprétation :",null,{"$f":"IF(OR(L33=\"\",L34=\"\"),\"\",IF(I38>L37,\"Attention, le nombre de personnes insatisfaites est trop élevé pour cette catégorie d'ambiance\",\"Le nombre de personnes insatisfaites est dans la plage attendue pour cette catégorie d'ambiance thermique\"))","v":""}]
[]
[null,"Sols froids ou chauds"]
[null,"Température du sol (Tf)",null,null,null,null,null,null,null,null,"°C"]
[null,"Catégorie d'ambiance souhaitée",null,null,null,null,null,null,null,null," ---"]
[null,"Pourcentage de personnes insatisfaites à ne pas dépasser",null,null,null,null,null,null,null,null,"%",{"$f":"IF(OR(L42=\"\",L43=\"\"),\"\",IF(L43=\"A\",10,IF(L43=\"B\",10,15)))","v":""}]
[null,"Résultat : Pourcentage de personnes insatisfaites (%)",null,null,null,null,null,null,{"$f":"IF(OR(L42=\"\",L43=\"\"),\"\",100-94*EXP(-1.387+0.118*L42-0.0025*L42^2))","v":""}]
[null,"Interprétation :",null,{"$f":"IF(L44=\"\",\"\",IF(I45>L44,\"Attention, le nombre de personnes insatisfaites est trop élevé pour cette catégorie d'ambiance\",\"Le nombre de personnes insatisfaites est dans la plage attendue pour cette catégorie d'ambiance thermique\"))","v":""}]
[]
[null,"Asymétrie de la température de rayonnement Dtp,r"]
[null,"Cas du plafond"]
[null,"Température sèche de l'air (Ta)",null,null,null,null,null,null,null,null,"°C"]
[null,"Température du plafond (Tc)",null,null,null,null,null,null,null,null,"°C"]
[null,"Asymétrie de température de rayonnement (Dtp,r)",null,null,null,null,null,null,null,null,"°C"]
[null,"Qualification de la situation",null,null,null,null,null,null,{"$f":"IF(OR(L50=\"\",L51=\"\",L52=\"\"),\"\",IF(L51<L50,\"Plafond froid\",\"Plafond chaud\"))","v":""}]
[null,"Catégorie d'ambiance souhaitée",null,null,null,null,null,null,null,null," ---"]
[null,"Pourcentage de personnes insatisfaites à ne pas dépasser",null,null,null,null,null,null,null,null,"%",{"$f":"IF(L54=\"\",\"\",IF(L54=\"A\",5,IF(L54=\"B\",5,10)))","v":""}]
[null,"Résultat : Pourcentage de personnes insatisfaites  (%)",null,null,null,null,null,null,{"$f":"IF(OR(L52=\"\",L50=\"\",L51=\"\"),\"\",IF(I53=\"Plafond chaud\",IF(L52<23,100/(1+EXP(2.84-0.174*L52))-5.5,\"Attention : asymétrie de température hors plage de validité\"),IF(L52<15,100/(1+EXP(9.93-0.5*L52)),\"Attention : asymétrie de température hors plage de validité\")))","v":""}]
[null,"Interprétation :",null,{"$f":"IF(I56=\"\",\"\",IF(I56>L55,\"Attention, le nombre de personnes insatisfaites est trop élevé pour cette catégorie d'ambiance\",\"Le nombre de personnes insatisfaites est dans la plage attendue pour cette catégorie d'ambiance thermique\"))","v":""}]
[null,"Cas d'un mur"]
[null,"Température sèche de l'air (Ta)",null,null,null,null,null,null,null,null,"°C"]
[null,"Température du mur considéré (Tw)",null,null,null,null,null,null,null,null,"°C"]
[null,"Asymétrie de température de rayonnement (Dtp,r)",null,null,null,null,null,null,null,null,"°C"]
[null,"Qualification de la situation",null,null,null,null,null,null,{"$f":"IF(OR(L59=\"\",L60=\"\",L61=\"\"),\"\",IF(L60<L59,\"Mur froid\",\"Mur chaud\"))","v":""}]
[null,"Catégorie d'ambiance souhaitée",null,null,null,null,null,null,null,null," ---"]
[null,"Pourcentage de personnes insatisfaites à ne pas dépasser",null,null,null,null,null,null,null,null,"%",{"$f":"IF(L63=\"\",\"\",IF(L63=\"A\",5,IF(L63=\"B\",5,10)))","v":""}]
[null,"Résultat : Pourcentage de personnes insatisfaites (%)",null,null,null,null,null,null,{"$f":"IF(OR(L59=\"\",L60=\"\",L61=\"\",L63=\"\"),\"\",IF(I62=\"Mur chaud\",IF(L61<35,100/(1+EXP(3.72-0.052*L61))-3.5,\"Attention : asymétrie de température hors plage de validité du modèle\"),IF(L61<15,100/(1+EXP(6.61-0.345*L61)),\"Attention : asymétrie de température hors plage de validité du modèle\")))","v":""}]
[null,"Interprétation :",null,{"$f":"IF(I65=\"\",\"\",IF(I65>L64,\"Attention, le nombre de personnes insatisfaites est trop élevé pour cette catégiria d'ambiance\",\"Le nombre de personnes insatisfaites est dans la plage attendue pour cette catégorie d'ambiance thermique\"))","v":""}]

{"sheet":"Contrainte froide","index":8,"n_rows":70,"n_cols":11,"rows_kept":70,"cut":false,"hidden":false,"merged":[[58,1,58,8],[59,1,60,8],[68,1,68,10],[69,1,69,8],[63,1,63,8],[64,1,64,8],[65,1,65,8],[66,1,66,8],[61,1,61,8],[62,1,62,8],[23,1,23,8],[52,1,52,8],[53,1,53,8],[56,1,56,8],[57,1,57,8],[50,1,50,8],[51,1,51,8],[42,3,42,10],[42,1,42,2],[28,1,28,8],[24,1,24,8],[25,1,25,8],[26,1,26,8],[27,1,27,8],[49,1,49,8],[46,1,46,10],[43,1,43,8],[48,1,48,10],[47,1,47,10],[29,1,29,8],[30,1,30,8],[39,1,39,8],[41,1,41,7],[35,1,35,8],[36,1,36,8],[37,1,37,8],[38,1,38,8],[40,1,40,8],[33,1,33,10],[34,1,34,8],[1,3,1,10],[3,3,3,10],[7,1,7,11],[6,1,6,11],[22,1,22,8],[18,1,18,8],[16,1,16,8],[13,1,13,10],[14,1,14,8],[15,1,15,8],[17,1,17,8],[19,1,19,8],[21,1,21,8],[11,8,11,10]]}
[]
[null,null,null,"Indicateur d'Ambiance Thermique"]
[]
[null,null,null,"Outil d’évaluation des ambiances thermiques"]
[]
[]
[null,"Calcul de l'isolement vestimentaire requis -  contrainte froide selon la norme NF EN ISO 11079:2007"]
[null,"Les basses températures, associées ou non à la présence de vent, peuvent mettre en danger l'équilibre thermique du corps humain. En effet, le corps possède peu de ressources internes pour lutter contre une perte excessive de chaleur. En choisissant correctement les vêtements, il est souvent possible de contrôler et réguler les pertes thermiques corporelles afin de compenser la variation du climat environnant, qu’il soit intérieur ou extérieur. Aussi, la méthode d’évaluation des risques utilisée en contrainte froide est basée sur l'évaluation de l'isolement des vêtements requis (IREQ) pour maintenir le bilan thermique du corps à l'équilibre.\nCette méthode d’évaluation des risques est encadrée par la norme NF EN ISO 11079:2007. \n\nÀ l'issue d'une exposition engendrant un refroidissement du corps, une période de récupération destinée à rétablir l'équilibre thermique normal du corps doit être prévue. Le calcul du temps de récupération est à suivre après celui de l'indice IREQ."]
[]
[null,"À renseigner",null,"Résultats",null,"Valeurs calculées"]
[]
[null,"Isolement thermique requis du vêtement : IREQ ",null,null,null,null,null,null,"Bouton permettant d'effacer les résultats d'un calcul précédent"]
[]
[null,"Données relatives au poste de travail"]
[null,"Température sèche de l'air (Ta)",null,null,null,null,null,null,null,"°C"]
[null,"Vitesse de l'air (Va)",null,null,null,null,null,null,null,"m/s"]
[null,"Pression de saturation de vapeur d'eau ",null,null,null,null,null,null,null,"kPa",{"$f":"EXP(23.3265-3802.7/(K15+273.18)-(472.68/(K15+273.18))^2)/1000","v":0.60940219806557927}]
[null,"Humidité absolue",null,null,null,null,null,null,null,"g/kg air",{"$f":"(0.622*K17*1000)/(101325-K17*1000)*1000","v":3.7635497923789321}]
[null,"Humidité relative",null,null,null,null,null,null,null,"%"]
[null,"Hygrométrie relative",null,null,null,null,null,null,null,"g/m3",{"$f":"IF(OR(K15=\"\",K16=\"\",K19=\"\"),\"\",K19/100*K18*1.2)","v":""}]
[]
[null,"Pression partielle de vapeur d'eau (Pa)",null,null,null,null,null,null,null,"kPa",{"$f":"IF(OR(K15=\"\",K19=\"\"),\"\",K19*0.6105*EXP(17.27*K15/(K15+237.3))/100)","v":""}]
[null,"Température du globe noir",null,null,null,null,null,null,null,"°C"]
[null,"Température moyenne de rayonnement (Tr) pour un globe noir mât de diamètre 15 cm",null,null,null,null,null,null,null,"°C",{"$f":"IF(OR(K23=\"\",K15=\"\",K16=\"\"),\"\",((K23+273)^4+2.5*10^8*(K23-K15)*K16^0.6)^0.25-273)","v":""}]
[null,"Métabolisme (M)",null,null,null,null,null,null,null,"W/m²"]
[]
[null,"Isolement thermique vestimentaire (Iclo)",null,null,null,null,null,null,null,"Clo"]
[null,"Isolement thermique vestimentaire (Iclo)",null,null,null,null,null,null,null,"m².K/W",{"$f":"IF(K27=\"\",\"\",K27*0.155)","v":""}]
[null,"Travail extérieur",null,null,null,null,null,null,null,"W/m²"]
[null,"Vitesse de marche (vitesse de déplacement de la personne)",null,null,null,null,null,null,null,"m/s"]
[null,"Perméabilité  à  l'air du vêtement (faible < 5, moyenne 50, élevée > 100 l/m²s)",null,null,null,null,null,null,null,"l/m².s"]
[]
[null,null,null,null,null,null,null,null,null,null,"Bouton permettant de lancer les calculs avec les données saisies"]
[null,"Résultats de la contrainte thermique froide selon la méthode IREQ"]
[null,"Icl,r Isolement thermique vestimentaire résultant",null,null,null,null,null,null,null,"clo"]
[null,"IREQ \"minimal\" définit l'isolement thermique vestimentaire minimal requis pour maintenir l'équilibre thermique du corps à un niveau hyponormal de la température moyenne du corps. La valeur IREQ minimale représente donc un certain refroidissement corporel, en particulier des parties périphériques du corps. En cas d'exposition prolongée, le refroidissement des extrémités peut devenir un facteur limitant pour la durée d'exposition",null,null,null,null,null,null,null,"clo"]
[null,"IREQ \"neutre\" définit l'isolement thermique vestimentaire requis pour créer les conditions de neutralité thermique, c'est-à-dire pour maintenir un équilibre thermique à un niveau normal de température moyenne du corps. Ce niveau représente l'absence de refroidissement ou un refroidissement minimal du corps humain.",null,null,null,null,null,null,null,"clo"]
[null,"Icl \"minimal\"",null,null,null,null,null,null,null,"clo"]
[null,"Icl \"neutre\"",null,null,null,null,null,null,null,"clo"]
[null,"Durée limite basée sur l'IREQ \"minimal\"",null,null,null,null,null,null,null,"heure"]
[null,"Durée limite basée sur l'IREQ \"neutre\"",null,null,null,null,null,null,null,"heure"]
[]
[null,"Interprétation :",null,{"$f":"IF(OR(K37=\"\",K36=\"\",K35=\"\"),\"\",IF(K35<K36,\"Isolement vestimentaire insuffisant, augmenter l'isolement thermique du vêtement ou limiter la durée d'exposition\",IF(K35<=K37,\"Contraintes thermiques faibles mais nécessitant une limitation de l'exposition et une évaluation des effets du refroidissement local\",\"Isolement thermique suffisant voire trop important pouvant générer une sudation excessive\")))","v":""}]
[null,"Durée limite d'exposition vis à vis du froid",null,null,null,null,null,null,null,"heures",{"$f":"IF(K41=\"\",\"\",K41)","v":""}]
[]
[null,"Temps de récupération"]
[]
[null,"À l'issue d'une exposition engendrant un refroidissement du corps, une période de récupération destinée à rétablir l'équilibre thermique normal du corps doit être prévue."]
[null,"Données relatives à la salle de repos"]
[null,"Température sèche de l'air (Ta)",null,null,null,null,null,null,null,"°C"]
[null,"Vitesse de l'air (Va)",null,null,null,null,null,null,null,"m/s"]
[null,"Pression de saturation de vapeur d'eau ",null,null,null,null,null,null,null,"kPa",{"$f":"EXP(23.3265-3802.7/(K50+273.18)-(472.68/(K50+273.18))^2)/1000","v":0.60940219806557927}]
[null,"Humidité absolue",null,null,null,null,null,null,null,"g/kg air",{"$f":"(0.622*K52*1000)/(101325-K52*1000)*1000","v":3.7635497923789321}]
[null,"Hygrométrie relative",null,null,null,null,null,null,null,"%"]
[null,"Hygrométrie de l'air",null,null,null,null,null,null,null,"g/m3",{"$f":"IF(OR(K50=\"\",K52=\"\",K54=\"\"),\"\",K54/100*K53*1.2)","v":""}]
[]
[null,"Pression partielle de vapeur d'eau (Pa)",null,null,null,null,null,null,null,"kPa",{"$f":"IF(OR(K50=\"\",K54=\"\"),\"\",K54*0.6105*EXP(17.27*K50/(K50+237.3))/100)","v":""}]
[null,"Température du globe noir",null,null,null,null,null,null,null,"°C"]
[null,"Température moyenne de rayonnement (Tr) pour un globe noir mât de diamètre 15 cm",null,null,null,null,null,null,null,"°C",{"$f":"IF(OR(K50=\"\",K51=\"\",K58=\"\"),\"\",((K58+273)^4+2.5*10^8*(K58-K50)*K51^0.6)^0.25-273)","v":""}]
[null,"Métabolisme (M)",null,null,null,null,null,null,null,"W/m²"]
[]
[null,"Isolement thermique vestimentaire (Iclo)",null,null,null,null,null,null,null,"Clo"]
[null,"Isolement thermique vestimentaire (Iclo)",null,null,null,null,null,null,null,"m².K/W",{"$f":"IF(K62=\"\",\"\",K62*0.155)","v":""}]
[null,"Travail extérieur",null,null,null,null,null,null,null,"W/m²"]
[null,"Vitesse de marche (vitesse de déplacement de la personne)",null,null,null,null,null,null,null,"m/s"]
[null,"Perméabilité à l'air du vêtement (faible < 5, moyenne 50, élevée > 100 l/m²s)",null,null,null,null,null,null,null,"l/m².s"]
[null,"Posture (Assis / Debout / Accroupi)",null,null,null,null,null,null,null,"/"]
[]
[null,"Résultats du temps de récupération "]
[null,"Temps de récupération",null,null,null,null,null,null,null,"heures"]

{"sheet":"Indice éolien","index":9,"n_rows":49,"n_cols":13,"rows_kept":49,"cut":false,"hidden":false,"merged":[[22,3,22,11],[21,3,21,11],[20,3,20,11],[19,3,19,11],[18,1,18,11],[29,2,29,12],[28,2,28,11],[29,1,30,1],[24,3,24,11],[23,3,23,11],[16,1,16,9],[1,3,1,10],[3,3,3,10],[7,1,7,11],[12,1,12,11],[13,1,13,9],[14,1,14,9],[15,1,15,9],[11,9,11,11]]}
[]
[null,null,null,"Indicateur d'Ambiance Thermique"]
[]
[null,null,null,"Outil d’évaluation des ambiances thermiques"]
[]
[]
[null,"Calcul de l'indice de refroidissement éolien "]
[null,"Pour les travaux en extérieur, le risque est aggravé en cas d’exposition au vent. La sensation de refroidissement est causée par l’effet combiné de la température et du vent. L’indice de refroidissement éolien, établi par les météorologues canadiens, exprime une température de refroidissement par le vent TW en °C . Il donne donc une température équivalente ressentie par l’organisme en fonction de la vitesse du vent, pour des individus adultes portant des vêtements d’hiver ; cet indice est associé à une classe de risques encourus par le corps."]
[]
[null,"À renseigner",null,"Résultats",null,"Valeurs calculées"]
[]
[null,null,null,null,null,null,null,null,null,"Bouton permettant d'effacer les résultats d'un calcul précédent"]
[null,"Données climatiques extérieures"]
[null,"Température sèche de l'air (Ta)",null,null,null,null,null,null,null,null,"°C"]
[null,"Vitesse de l'air à 10 m du sol (Va)\nLa vitesse de l'air à 10 m du sol équivaut à celle mesurée au niveau du sol multipliée par un facteur 1,5",null,null,null,null,null,null,null,null,"m/s"]
[null,"Vitesse de l'air",null,null,null,null,null,null,null,null,"km/h",{"$f":"IF(L15=\"\",\"\",L15*3.6)","v":""}]
[null,"Température de refroidissement par le vent (Tw)",null,null,null,null,null,null,null,null,"°C",{"$f":"IF(OR(L14=\"\",L15=\"\"),\"\",13.12+0.6215*L14-11.37*L16^0.16+0.3965*L14*L16^0.16)","v":""}]
[]
[null,"Tableau de classes de risque associées à Tw"]
[null,"Classes de risque","Tw (°C)","Effets"]
[null,0,"0 à -9","Risque faible - Froid gênant"]
[null,1,"-10 à -24","Risque modéré - Risque d'hypothermie et d'engelure si la personne\nse trouve à l'extérieur pendant de longues périodes sans protection adéquate"]
[null,2,"-25 à -34","Risque élevé - Risque d'engelures (en 10 à 30 min) et d'hypothermie"]
[null,3,"-34 à -59","Risque très élevé à grave - Risque d'engelures (en 2 à 10 min) et d'hypothermie\nDes vents soutenus de plus de 50 km/h peuvent causer des gelures plus rapidement qu'indiqué"]
[null,4,"< -60  ","Risque extrême - risque de gelure profonde en moins de 2 minutes et d'hypothermie"]
[]
[null,"Information  :  Le tableau ci-après reprend différentes valeurs de l'indice éolien en fonction de la température de l'air extérieur et de la vitesse de vent."]
[]
[null,null,"Tableau  de valeurs de la température de refroidissement par le vent Tw"]
[null,"Vitesse du vent en km/h 6","Température de l'air extérieur en °C 6"]
[null,null,0,-5,-10,-15,-20,-25,-30,-35,-40,-45,-50]
[null,5,{"$f":"13.12+0.6215*$C$31-11.37*B32^0.16+0.3965*$C$31*B32^0.16","v":-1.5894239550074207},{"$f":"13.12+0.6215*$D$31-11.37*B32^0.16+0.3965*$D$31*B32^0.16","v":-7.2616937870920477},{"$f":"13.12+0.6215*$E$31-11.37*B32^0.16+0.3965*$E$31*B32^0.16","v":-12.933963619176676},{"$f":"13.12+0.6215*$F$31-11.37*B32^0.16+0.3965*$F$31*B32^0.16","v":-18.606233451261303},{"$f":"13.12+0.6215*$G$31-11.37*B32^0.16+0.3965*$G$31*B32^0.16","v":-24.278503283345934},{"$f":"13.12+0.6215*$H$31-11.37*B32^0.16+0.3965*$H$31*B32^0.16","v":-29.950773115430557},{"$f":"13.12+0.6215*$I$31-11.37*B32^0.16+0.3965*$I$31*B32^0.16","v":-35.623042947515188},{"$f":"13.12+0.6215*$J$31-11.37*B32^0.16+0.3965*$J$31*B32^0.16","v":-41.295312779599811},{"$f":"13.12+0.6215*$K$31-11.37*B32^0.16+0.3965*$K$31*B32^0.16","v":-46.967582611684449},{"$f":"13.12+0.6215*$L$31-11.37*B32^0.16+0.3965*$L$31*B32^0.16","v":-52.639852443769065},{"$f":"13.12+0.6215*$M$31-11.37*B32^0.16+0.3965*$M$31*B32^0.16","v":-58.312122275853696}]
[null,10,{"$f":"13.12+0.6215*$C$31-11.37*B33^0.16+0.3965*$C$31*B33^0.16","v":-3.3146501933811958},-9.2877345388849974,{"$f":"13.12+0.6215*$E$31-11.37*B33^0.16+0.3965*$E$31*B33^0.16","v":-15.260818884388801},{"$f":"13.12+0.6215*$F$31-11.37*B33^0.16+0.3965*$F$31*B33^0.16","v":-21.233903229892604},{"$f":"13.12+0.6215*$G$31-11.37*B33^0.16+0.3965*$G$31*B33^0.16","v":-27.206987575396404},{"$f":"13.12+0.6215*$H$31-11.37*B33^0.16+0.3965*$H$31*B33^0.16","v":-33.180071920900204},{"$f":"13.12+0.6215*$I$31-11.37*B33^0.16+0.3965*$I$31*B33^0.16","v":-39.153156266404011},{"$f":"13.12+0.6215*$J$31-11.37*B33^0.16+0.3965*$J$31*B33^0.16","v":-45.126240611907804},{"$f":"13.12+0.6215*$K$31-11.37*B33^0.16+0.3965*$K$31*B33^0.16","v":-51.099324957411611},{"$f":"13.12+0.6215*$L$31-11.37*B33^0.16+0.3965*$L$31*B33^0.16","v":-57.07240930291541},{"$f":"13.12+0.6215*$M$31-11.37*B33^0.16+0.3965*$M$31*B33^0.16","v":-63.04549364841921}]
[null,15,-4.4161828869347968,-10.581333069287323,-16.746483251639852,-22.911633433992378,-29.076783616344905,-35.241933798697431,-41.407083981049965,-47.572234163402484,-53.737384345755018,-59.902534528107545,-66.067684710460071]
[null,20,-5.2422232797809318,-11.551403812073429,-17.860584344365929,-24.169764876658427,-30.478945408950924,-36.788125941243422,-43.097306473535923,-49.406487005828424,-55.715667538120918,-62.024848070413412,-68.334028602705899]
[null,25,-5.9096528661518146,-12.335207994308892,-18.760763122465971,-25.186318250623049,-31.611873378780125,-38.037428506937204,-44.46298363509429,-50.888538763251361,-57.314093891408433,-63.739649019565519,-70.165204147722591]
[null,30,-6.4729515904544161,-12.996724811921073,-19.520498033387732,-26.044271254854387,-32.568044476321049,-39.091817697787697,-45.615590919254359,-52.139364140721014,-58.663137362187676,-65.186910583654324,-71.710683805120979]
[null,35,-6.9622029525994247,-13.571283194774303,-20.180363436949182,-26.789443679124059,-33.398523921298938,-40.007604163473815,-46.616684405648698,-53.225764647823567,-59.83484488999845,-66.443925132173334,-73.053005374348203]
[null,40,-7.3958758969095282,-14.080572375856155,-20.765268854802784,-27.449965333749411,-34.134661812696038,-40.819358291642665,-47.504054770589292,-54.188751249535912,-60.873447728482546,-67.558144207429166,-74.2428406863758]
[null,45,-7.7861694859463721,-14.538918475030689,-21.291667464115008,-28.044416453199325,-34.797165442283642,-41.549914431367959,-48.302663420452284,-55.055412409536594,-61.808161398620911,-68.560910387705235,-75.313659376789545]
[null,50,-8.1415863893305787,-14.956306707435054,-21.771027025539532,-28.585747343644009,-35.400467661748479,-42.215187979852949,-49.029908297957434,-55.844628616061911,-62.659348934166381,-69.474069252270851,-76.288789570375329]
[null,55,-8.4683025070618019,-15.339989817549931,-22.211677128038062,-29.083364438526193,-35.955051749014316,-42.826739059502444,-49.698426369990578,-56.570113680478713,-63.44180099096684,-70.313488301454953,-77.185175611943095]
[null,60,-8.7709528088863653,-15.695410939371609,-22.619869069856854,-29.544327200342103,-36.468785330827345,-43.393243461312579,-50.317701591797828,-57.242159722283077,-64.166617852768326,-71.09107598325356,-78.015534113738795]
[null,65,-9.0531095010740561,-16.026765137475053,-23.000420773876051,-29.974076410277046,-36.947732046678041,-43.921387683079033,-50.895043319480031,-57.86869895588103,-64.842354592282021,-71.816010228683012,-78.789665865084018]
[null,70,-9.317587063095301,-16.337357630605101,-23.357128198114903,-30.376898765624702,-37.396669333134504,-44.416439900644306,-51.436210468154115,-58.45598103566391,-65.475751603173705,-72.495522170683515,-79.51529273819331]
[null,75,-9.5666445590562734,-16.62984137861028,-23.693038198164292,-30.7562350177183,-37.819431837272305,-44.882628656826313,-51.945825476380321,-59.009022295934329,-66.072219115488338,-73.135415935042346,-80.198612754596354]
[null,80,-9.8021242659028882,-16.906379882187188,-24.010635498471487,-31.114891114755785,-38.219146731040084,-45.323402347324389,-52.427657963608695,-59.531913579892986,-66.636169196177292,-73.740424812461583,-80.844680428745875]
[null,85,-10.025549337301323,-17.168761875665428,-24.311974414029535,-31.455186952393642,-38.598399490757743,-45.741612029121846,-52.884824567485957,-60.028037105850061,-67.171249644214171,-74.314462182578268,-81.457674720942379]
[null,90,-10.238194273005798,-17.418484083580466,-24.598773894155137,-31.779063704729811,-38.959353515304478,-46.139643325879149,-53.31993313645382,-60.50022294702849,-67.680512757603168,-74.860802568177832,-82.041092378752495]